Cogmind - Beta 16 @@@ ROGUE MODE // 2025.12.02 @ 00:09:38 Player: shapeshifter Result: Core destroyed Performance ------------- Evolutions (8) 4000 Regions Visited (29) 5800 Robots Destroyed (207) 1035 Value Destroyed (6931) 6931 Prototype IDs (146) 2920 Alien Tech Used (10) 2000 Bonus (8042) 8042 TOTAL SCORE: 30728 Bonus ------- High Alert Combat Kills 325 Follower Combat Kills 2790 Network Hubs Disabled 200 Registered with UFD 300 Met Optimus in HQ 500 Met Zhirov 300 Built Enhanced Grunts 300 A7 Reached Mainframe 300 Met R17 at Cetus 500 Found Hidden Lab 3000 Met Optimus at Protoforge 1000 Friendly Fire -1473 Cogmind --------- Core Integrity 0/1450 Matter 290/300 Energy 89/100 System Corruption 2% Temperature Cool (0) Movement Core (50) Location -2/Protoforge Parts ------- > --- POWER (3) -------- (None) > --- PROPULSION (9) --- (None) > --- UTILITY (9) ------ Enhanced Optical Array Improved Hacking Suite Improved Hacking Suite Quantum Router > --- WEAPON (3) ------- (None) > --- INVENTORY (5) ---- Concept Variable Chargecaster Potential Cannon Peak State ------------ > --- POWER ------------ Improved Quantum Reactor Improved Quantum Reactor > --- PROPULSION ------- Xenon Bombardment Thruster Xenon Bombardment Thruster Xenon Bombardment Thruster Impulse Thruster Array Experimental Surge Thruster Experimental Surge Thruster Experimental Surge Thruster > --- UTILITY ---------- Experimental Heat Sink Enhanced Optical Array Experimental Core Analyzer Experimental Reaction Control System Improved Phase Shifter Centrium Light Armor Plating Improved Hacking Suite Improved Hacking Suite Quantum Router > --- WEAPON ----------- Potential Cannon Concept XC Strikerail > --- INVENTORY -------- Large Storage Unit Dimensional Node Initializer High-powered Transdimensional Reconstructor Core Expander Gamma Bomb Array [Rating: 184] Favorites ----------- Power Light Nuclear Core Engine Deuterium Engine Power Core Light Nuclear Core Reactor Micro Antimatter Reactor Propulsion Light Treads Treads Light Treads Leg Improved Carbon-fiber Leg Wheel Armored Wheel Hover Unit Gravmag System Flight Unit Improved VTOL Module Utility Improved Hacking Suite Device Improved Heat Sink Storage Large Storage Unit Processor Enhanced Optical Array Hackware Improved Hacking Suite Protection Centrium Medium Armor Plating Weapon Spread Laser Energy Gun Spread Laser Energy Cannon Ion Cannon Ballistic Gun Coil Gun Ballistic Cannon Hypervelocity Mass Driver Launcher Heavy Missile Launcher Special Weapon Improved Remote Datajack Impact Weapon Power Maul Slashing Weapon Ionic Axe Piercing Weapon Enhanced Force Lance Special Melee Weapon Improved Datajack Build | -11 -10 -10 -9 -9 -8 -8 -8 -8 -6 -6 -6 -5 -5 -5 -5 -5 -5 -4 -4 -4 -4 -4 -4 -3 -3 -3 -2 -2 -2 ------- Run | Yrd Mat Min Mat Min Mat Sto Rec Scr Fac Was Fac Fac Was Fac Upp Upp Zhi Pro Fac Ext Cet Arc Hub Res Arm Lab Res Qua Frg Slots Evolved 16 | . . . 2 . 2 . . . 4 . . 2 . . . . . . 2 . . . . 2 . . 2 . . Power 2 | . . . . . . . . . 1 . . . . . . . . . . . . . . . . . 1 . . Propulsion 6 | . . . . . 2 . . . 2 . . 1 . . . . . . . . . . . 1 . . . . . Utility 7 | . . . 2 . . . . . 1 . . 1 . . . . . . 2 . . . . 1 . . . . . Weapon 1 | . . . . . . . . . . . . . . . . . . . . . . . . . . . 1 . . Parts Attached 238 | 6 8 . 24 7 13 16 8 20 12 1 8 3 1 11 . . 3 . 4 9 3 9 1 17 16 3 5 5 25 Power 35 | 1 2 . 3 . . 2 1 1 3 . 1 . . 2 . . 1 . 1 3 1 1 . 3 2 . 3 2 2 Engine 12 | 1 2 . 2 . . 2 1 . 1 . . . . . . . . . . 1 . . . . . . 2 . . Core 11 | . . . 1 . . . . 1 2 . 1 . . 2 . . . . 1 2 . . . 1 . . . . . Reactor 12 | . . . . . . . . . . . . . . . . . 1 . . . 1 1 . 2 2 . 1 2 2 Propulsion 80 | 2 2 . 4 2 7 5 4 10 4 . 1 . . 3 . . . . . 4 . 6 1 8 4 1 1 1 10 Treads 13 | 2 . . 3 2 1 . 4 1 . . . . . . . . . . . . . . . . . . . . . Leg 10 | . . . . . 6 3 . . . . . . . . . . . . . . . . . . . . . . 1 Wheel 3 | . 2 . 1 . . . . . . . . . . . . . . . . . . . . . . . . . . Hover 24 | . . . . . . 1 . 3 . . . . . . . . . . . 1 . 6 . 6 3 1 1 1 1 Flight 30 | . . . . . . 1 . 6 4 . 1 . . 3 . . . . . 3 . . 1 2 1 . . . 8 Utility 75 | 1 2 . 9 1 5 3 1 5 4 1 6 2 . 4 . . 1 . 3 1 1 2 . 6 5 2 . . 10 Device 33 | . 1 . 6 1 2 1 1 2 1 . 2 . . 1 . . 1 . . 1 . 1 . 3 5 . . . 4 Storage 9 | 1 1 . . . 2 . . 2 . . 1 . . . . . . . . . 1 . . . . 1 . . . Processor 11 | . . . 1 . . . . . 1 1 1 1 . 1 . . . . . . . . . 1 . . . . 4 Hackware 13 | . . . . . . . . 1 2 . 2 1 . 2 . . . . 3 . . 1 . . . . . . 1 Protection 9 | . . . 2 . 1 2 . . . . . . . . . . . . . . . . . 2 . 1 . . 1 Artifact . | . . . . . . . . . . . . . . . . . . . . . . . . . . . . . . Weapon 48 | 2 2 . 8 4 1 6 2 4 1 . . 1 1 2 . . 1 . . 1 1 . . . 5 . 1 2 3 Energy Gun 15 | 1 2 . 6 1 1 1 . . . . . . . . . . . . . . . . . . 1 . 1 . 1 Energy Cannon 3 | . . . 1 . . . 1 . . . . . . . . . . . . . . . . . . . . 1 . Ballistic Gun 8 | 1 . . 1 . . 2 . 1 . . . . . . . . . . . . 1 . . . . . . . 2 Ballistic Cannon 1 | . . . . . . . . . . . . . . . . . . . . 1 . . . . . . . . . Launcher 8 | . . . . 2 . 2 . . 1 . . . 1 . . . . . . . . . . . 1 . . 1 . Special Weapon 5 | . . . . . . 1 . 1 . . . 1 . 1 . . 1 . . . . . . . . . . . . Impact Weapon 2 | . . . . . . . . 1 . . . . . . . . . . . . . . . . 1 . . . . Slashing Weapon 2 | . . . . . . . . . . . . . . . . . . . . . . . . . 2 . . . . Piercing Weapon 1 | . . . . . . . . . . . . . . 1 . . . . . . . . . . . . . . . Special Melee Weapon 3 | . . . . 1 . . 1 1 . . . . . . . . . . . . . . . . . . . . . Unidentified Prototypes 49 | . . . 5 . . 3 . . 2 1 1 . 1 2 . . 2 . . . 2 . 1 3 10 2 1 3 10 Corrupted Parts 1 | . . . . . . . . . . . . . . . . . . . . 1 . . . . . . . . . System Corruption 2 | . . . . . . . . . . . . . . . . . . . . 2 . . . . . . . . . Parts Lost 88 | . 3 . 5 2 . 10 2 . . . 6 . . 2 . . . 1 8 . 2 . 2 4 8 . 5 2 26 Power 19 | . 2 . 2 . . 1 . . . . 1 . . 1 . . . . 3 . . . . 1 4 . 1 . 3 Propulsion 36 | . 1 . . . . 2 1 . . . 4 . . 1 . . . . 4 . 2 . 2 1 3 . 2 1 12 Utility 21 | . . . 3 1 . 2 . . . . 1 . . . . . . 1 1 . . . . 2 . . 1 . 9 Weapon 12 | . . . . 1 . 5 1 . . . . . . . . . . . . . . . . . 1 . 1 1 2 Highest Loss Streak 9 | . 2 . 3 2 . 4 1 . . . 3 . . 1 . . . 1 4 . 2 . 2 2 7 . 5 2 9 To Critical Strikes 3 | . . . . . . . . . . . . . . . . . . . . . . . . . . . . . 3 Average Backups 14 | 2 6 11 14 11 15 19 19 17 13 15 14 14 14 14 15 15 15 15 13 14 14 14 13 12 14 10 13 13 10 Power . | 1 . . . . . . . . . 1 . . . . 1 1 1 1 . . . . . . 2 . . . 1 Propulsion 3 | . 1 2 2 1 2 7 10 8 2 3 1 . . . 1 1 1 1 . . . 1 1 . 1 . . . . Utility 5 | . 2 6 2 3 8 9 6 6 6 8 8 10 9 8 8 8 8 8 6 8 8 7 6 6 4 4 4 3 1 Weapon 2 | . 2 2 7 5 2 1 1 . 1 1 1 1 1 2 1 1 1 1 1 3 2 1 1 1 1 2 4 2 2 Tool/Special . | . . . . . . . . . . . . . . . . . . . . . . . . . . . . . . Unused Backups 56 | . 3 . 11 . 6 3 1 10 3 . 1 . 1 3 1 1 . . . . 4 1 1 . 1 1 . 2 2 Power 1 | . . . 1 . . . . . . . . . . . . . . . . . . . . . . . . . . Propulsion 6 | . . . 2 . . . . 2 2 . . . . . . . . . . . . . . . . . . . . Utility 30 | . . . 1 . 4 3 . 6 . . 1 . 1 2 1 1 . . . . 4 1 1 . 1 1 . . 2 Weapon 15 | . 3 . 7 . 1 . 1 1 1 . . . . 1 . . . . . . . . . . . . . . . Tool/Special 4 | . . . . . 1 . . 1 . . . . . . . . . . . . . . . . . . . 2 . Average Slot Usage (%) 90 | . 96 100 97 99 98 93 96 96 92 99 94 86 88 88 94 94 94 93 80 78 78 94 93 85 92 83 76 86 60 Engine 4 | . 13 14 9 . . 7 9 5 2 . . . . . . . . . . 3 . . . . . . 5 5 . Core 3 | . . . 1 11 9 1 . 3 7 13 12 11 11 10 11 11 11 11 6 6 5 1 . 2 . 4 2 . . Reactor 1 | . . . . . . . . . . . . . . . . . . . . . 1 8 8 5 8 . . 6 3 Treads 8 | . 20 . 16 22 2 . 14 23 . . . . . . . . . . . . . . . . . . . . . Leg 4 | . . . . . 31 34 19 . . . . . . . . . . . . . . . . . . . . . 1 Wheel 1 | . 7 28 5 . . . . . . . . . . . . . . . . . . . . . . . . . . Hover 4 | . . . . . . . . 4 . . . . . . . . . . . 1 . 24 24 18 32 31 25 28 5 Flight 9 | . . . . . . . . 8 39 40 40 35 35 34 35 35 35 35 26 19 22 7 9 10 . . . . 10 Device 15 | . 10 14 24 21 21 18 26 23 12 12 11 5 5 8 11 11 11 10 7 6 9 10 10 5 10 9 3 8 5 Storage 8 | . 14 14 11 11 9 9 9 9 6 6 6 5 5 5 5 5 5 5 5 5 5 5 5 3 4 7 8 8 3 Processor 5 | . . . 4 11 1 . . . 4 6 10 12 11 11 11 11 11 11 10 10 10 10 10 13 6 4 4 4 9 Hackware 5 | . . . . . . . . 2 8 6 2 7 11 7 5 5 5 5 14 19 15 15 15 14 14 14 13 13 12 Protection 1 | . . . 3 . 4 6 . . . . . . . . . . . . . . . . . 2 4 4 7 4 1 Energy Gun 6 | . 24 28 21 20 18 7 . . . . . . . . . . . . . . . . . . . . . 2 . Ballistic Gun 1 | . 3 . . . . 2 . 4 . . . . . . . . . . . . . . . . . . . . 3 Launcher 1 | . . . . . . 5 4 3 . . . . . . . . . . . . . . . . . . . . . Impact Weapon 1 | . . . . . . . . 2 6 6 6 5 5 2 5 5 5 5 3 3 . . . . . . . . . Special Melee Weapon 1 | . . . . . . . 4 4 2 6 2 . . . . . . . . . . . . . . . . . . Peak Build Rating 184 | 6 12 13 27 23 39 41 49 42 66 71 71 77 80 95 101 101 98 97 103 100 101 109 112 147 153 132 137 170 184 Average Rating 61 | 4 9 12 20 20 36 37 41 38 53 66 66 71 73 84 96 96 96 96 91 86 89 104 103 129 143 124 121 149 125 On Entrance 73 | . 6 12 13 21 21 39 36 34 40 66 66 67 72 74 95 96 96 97 92 79 93 93 109 103 147 116 132 129 147 Avg Prop Armor Cover (%) 7 | . 13 . . . . . . . . . . . . 3 . . . . . 7 . 7 5 12 . 3 3 . 4 Naked Turns . | . . . . . . . . . . . . . . . . . . . . . . . . . . . . . . Heaviest Build 89 | 14 30 30 36 39 60 66 64 64 40 34 34 32 32 47 41 41 41 41 46 57 53 62 62 84 84 53 67 86 89 Greatest Support 105 | 40 40 24 40 40 72 72 80 80 35 35 38 32 32 54 42 42 42 42 53 53 53 66 66 101 105 88 88 89 80 Greatest Overweight (x) 2 | . 2 1 1 . . 1 2 2 1 . . . . . . . . . 1 1 1 1 1 1 . . 1 1 1 Average Overweight (x) . | . . 1 . . . . . . . . . . . . . . . . . . . . . . . . . . . Largest Inventory Capacity 20 | 8 15 15 15 15 20 20 20 20 15 15 15 15 15 15 15 15 15 15 15 15 15 15 15 15 15 15 15 15 15 Average Capacity 15 | 7 10 15 15 15 17 20 20 18 15 15 15 15 15 15 15 15 15 15 15 15 15 15 15 14 15 15 15 15 12 Most Carried 20 | 5 10 13 15 15 20 20 20 20 15 15 15 15 15 15 15 15 15 15 15 15 15 15 15 15 15 15 15 15 15 Average Carried 14 | 2 6 11 14 11 15 19 19 17 13 15 14 14 14 14 15 15 14 15 13 14 14 14 14 13 14 11 14 14 11 Final Capacity 20 | 8 15 15 15 15 20 20 20 15 15 15 15 15 15 15 15 15 15 15 15 15 15 15 15 15 15 15 15 15 15 Final Carried 20 | 2 10 13 15 11 20 20 20 15 15 15 14 14 15 15 15 15 15 15 15 15 15 15 13 15 10 15 13 15 15 Class Distribution -------------------- 46% | Mutant 9% | Commander-Scout 8% | Hacker-Mutant 8% | Scavenger-Mutant 6% | Scout 4% | Hacker-Scout 4% | Hacker-Sprinter 3% | Derelict-Mutant Dominant Class ---------------- Mutant | -10/Materials Mutant | -10/Mines Mutant | -9/Materials Mutant | -9/Mines Mutant | -8/Materials Mutant | -8/Storage Mutant | -8/Recycling Mutant | -8/Scraptown Sprinter | -6/Factory Sprinter | -6/Waste Scout | -6/Factory Scout | -5/Factory Hacker-Scout | -5/Waste Scout | -5/Factory Scout | -5/Upper Caves Scout | -5/Upper Caves Scout | -5/Zhirov Ninja | -4/Proximity Caves Hacker-Scout | -4/Factory Hacker-Sprinter | -4/Extension Commander-Scout | -4/Cetus Commander-Scout | -4/Archives Commander-Scout | -4/Hub_04(d) Hacker-Scout | -3/Research Scavenger-Mutant | -3/Armory Hacker-Mutant | -3/Lab Hacker-Mutant | -2/Research Hacker-Mutant | -2/Quarantine Hacker-Mutant | -2/Protoforge Resources | -11 -10 -10 -9 -9 -8 -8 -8 -8 -6 -6 -6 -5 -5 -5 -5 -5 -5 -4 -4 -4 -4 -4 -4 -3 -3 -3 -2 -2 -2 ----------- Run | Yrd Mat Min Mat Min Mat Sto Rec Scr Fac Was Fac Fac Was Fac Upp Upp Zhi Pro Fac Ext Cet Arc Hub Res Arm Lab Res Qua Frg Matter Collected 5514 | 210 193 . 275 100 140 408 102 203 131 280 9 27 234 34 37 175 84 53 89 475 476 183 5 298 187 . 198 . 908 Remotely . | . . . . . . . . . . . . . . . . . . . . . . . . . . . . . . Salvage Created 6977 | . 480 44 1354 230 451 1172 161 . 143 . 36 27 . 34 . . 129 . 89 370 323 314 . 11 44 . 198 . 1367 Parts 371 | . 34 5 87 18 21 62 6 . 11 . 5 1 . . . . 2 . 5 9 14 20 . 3 3 . 10 . 55 Haulers Intercepted 4 | . . . 3 . . 1 . . . . . . . . . . . . . . . . . . . . . . . Recyclers Shooed 6 | . 1 1 . . 4 . . . . . . . . . . . . . . . . . . . . . . . . Parts Field Recycled . | . . . . . . . . . . . . . . . . . . . . . . . . . . . . . . Retrieved Matter . | . . . . . . . . . . . . . . . . . . . . . . . . . . . . . . Parts Self-Destructed 3 | . . . . . . . . . . . . . . . 1 . 2 . . . . . . . . . . . . Prevented . | . . . . . . . . . . . . . . . . . . . . . . . . . . . . . . Parts Restored . | . . . . . . . . . . . . . . . . . . . . . . . . . . . . . . Kills | -11 -10 -10 -9 -9 -8 -8 -8 -8 -6 -6 -6 -5 -5 -5 -5 -5 -5 -4 -4 -4 -4 -4 -4 -3 -3 -3 -2 -2 -2 ------- Run | Yrd Mat Min Mat Min Mat Sto Rec Scr Fac Was Fac Fac Was Fac Upp Upp Zhi Pro Fac Ext Cet Arc Hub Res Arm Lab Res Qua Frg Combat Hostiles Destroyed 154 | . 17 3 27 8 12 23 4 . 6 . 3 . . . . . . . 1 3 3 . . . . . . . 44 Melee 2 | . . . . . . . . . 1 . . . . . . . . . 1 . . . . . . . . . . Guns 100 | . 17 3 24 7 12 8 . . . . . . . . . . . . . . . . . . . . . . 29 Cannons 10 | . . . . . . . 2 . . . . . . . . . . . . 3 3 . . . . . . . 2 AOE 35 | . . . 2 . . 12 . . 5 . 3 . . . . . . . . . . . . . . . . . 13 Classes Destroyed 22 | . 3 1 4 1 1 2 2 . . . . . . . . . . . . 2 . . . . . . . . 6 Worker 11 | . . 1 4 . . 3 . . . . 1 . . . . . . . . . . . . 1 . . 1 . . Builder 5 | . . . . . . 5 . . . . . . . . . . . . . . . . . . . . . . . Tunneler 1 | . . . . 1 . . . . . . . . . . . . . . . . . . . . . . . . . Hauler 4 | . . . 3 . . 1 . . . . . . . . . . . . . . . . . . . . . . . Recycler 4 | . . . 1 . 1 . . . . . . . . . . . . . . 1 . . . . . . 1 . . Mechanic 2 | . . . . . . 2 . . . . . . . . . . . . . . . . . . . . . . . Operator 11 | . . . . . . . . . . . . . . . . . . . . 1 . 9 . . . . 1 . . Drone 25 | . . . . . . . . . . . . . . . . . . . . . . . . . . . . . 25 Watcher 19 | . 2 . 5 . 2 2 . . 1 . . 1 . 1 . . . . . 1 2 . . . 1 . 1 . . Swarmer 37 | . 6 3 11 5 3 . . . 3 . 3 . . . . . . . . . . . . . . . . . 3 Grunt 46 | . 11 . 9 2 7 12 . . 2 . . . . . . . . . . 1 . . . . . . . . 2 Brawler 4 | . . . . . 1 2 1 . . . . . . . . . . . . . . . . . . . . . . Duelist 2 | . . . 1 . . 1 . . . . . . . . . . . . . . . . . . . . . . . Protector 1 | . . . . . . . 1 . . . . . . . . . . . . . . . . . . . . . . Sentry 18 | . . . 6 . 1 8 1 . 1 . . . . . . . . . 1 . . . . . . . . . . Specialist 4 | . . . . . . . . . . . . . . . . . . . . . . . . . . . . . 4 Hunter 4 | . . . . . . . . . . . . . . . . . . . . 2 1 . . . . . . . 1 Programmer 4 | . . . . . . . 1 . . . . . . . . . . . . . . . . . . . . . 3 Cetus Guard 2 | . . . . . . . . . . . . . . . . . . . . . 2 . . . . . . . . Decapitator 1 | . . . . . . . . . . . . . . . . . . . . . . . . . . . . . 1 Striker 1 | . . . . . . . . . . . . . . . . . . . . . . . . . . . . . 1 Executioner 3 | . . . . . . . . . . . . . . . . . . . . . . . . . . . . . 3 Scraphulk 1 | . . . . . . . . . . . . . . . . . . . . . . . . . . . . . 1 Best Kill Streak 13 | . 4 4 11 4 4 13 2 . 5 . 4 1 . 1 . . . . 1 1 3 4 . 1 1 . 2 . 8 Combat Bots Only 9 | . 4 3 8 4 4 9 2 . 5 . 3 . . . . . . . 1 1 2 . . . . . . . 8 Max Kills in Single Turn 4 | . 2 1 3 1 2 4 1 . 2 . 2 1 . 1 . . . . 1 1 1 1 . 1 1 . 1 . 4 Gunslinging 1 | . 1 . 1 . 1 . . . . . . . . . . . . . . . . . . . . . . . . Exploded 4 | . . . 2 . . 3 . . 2 . 2 . . . . . . . . . . . . . . . . . 4 Melee 1 | . . . . . . . . . 1 . . . . . . . . . 1 . . . . . . . . . . Uniques/NPCs Destroyed 2 | . . . . 1 . . . . . . . . . . . . . . . . 1 . . . . . . . . YI-UF0 (-9/Mines) A7 (-4/Cetus) Combat | -11 -10 -10 -9 -9 -8 -8 -8 -8 -6 -6 -6 -5 -5 -5 -5 -5 -5 -4 -4 -4 -4 -4 -4 -3 -3 -3 -2 -2 -2 -------- Run | Yrd Mat Min Mat Min Mat Sto Rec Scr Fac Was Fac Fac Was Fac Upp Upp Zhi Pro Fac Ext Cet Arc Hub Res Arm Lab Res Qua Frg Hostile Shots Fired 1147 | . 79 8 138 33 37 136 21 . 22 . 58 . . 21 . . . 18 60 16 28 . 7 74 65 . 53 52 221 Missed 467 | . 22 1 41 11 12 33 7 . 6 . 28 . . 14 . . . 10 36 12 10 . 2 31 41 . 21 25 104 Hits 680 | . 57 7 97 22 25 103 14 . 16 . 30 . . 7 . . . 8 24 4 18 . 5 43 24 . 32 27 117 Melee 9 | . . . . . . 3 . . . . . . . . . . . . . . . . . . . . . . 6 Projectile 671 | . 57 7 97 22 25 100 14 . 16 . 30 . . 7 . . . 8 24 4 18 . 5 43 24 . 32 27 111 AOE 38 | . . . . 16 . . 4 . . . . . . . . . . . 4 . . . . . 13 . . . 1 Critical Strikes 33 | . 2 . 1 . . 5 . . . . . . . 1 . . . . 1 . 5 . . 2 . . 1 3 12 Part Disruptions 3 | . . . . . . . 1 . . . 1 . . . . . . . 1 . . . . . . . . . . Damage Taken 14211 | . 601 57 934 571 352 1720 302 . 216 . 407 . . 134 . . . 166 463 69 364 . 170 966 1055 . 941 493 4230 Core 2738 | . 82 27 164 68 18 217 57 . 39 . 81 . . 38 . . . 42 69 21 137 . 5 137 69 . 25 114 1328 Absorbed by Shields 177 | . . . . . . . . . . . . . . . . . . . . 40 137 . . . . . . . . Regen/Repaired (Parts) 556 | . . . . . . . . 114 . . . . 5 . . . . . . . . . . 437 . . . . . Core Remaining (%) 72 | 100 . 56 . 42 . . . 46 . . 85 . . . . . . 92 . . . . 79 . . 78 . . . Volleys Fired 457 | . 49 6 72 20 31 64 29 . 6 . 2 1 . 5 . . 3 . 2 40 39 . . 1 9 . 2 . 76 Largest 2 | . 2 2 2 2 2 2 1 . 1 . 1 1 . 1 . . 1 . 1 1 1 . . 1 1 . 1 . 2 Hottest 232 | . 130 130 110 130 130 130 60 . 39 . 39 7 . 7 . . 7 . 7 56 56 . . 56 7 . 7 . 232 Shots Fired 700 | . 98 12 144 36 62 79 31 . 6 . 2 1 . 5 . . 3 . 2 41 39 . . 1 9 . 2 . 127 Gun 518 | . 98 12 144 30 62 61 . . . . . . . . . . . . . . . . . . . . . . 111 Cannon 106 | . . . . . . . 31 . . . . . . . . . . . . 21 39 . . 1 . . . . 14 Launcher 31 | . . . . 6 . 17 . . 6 . 2 . . . . . . . . . . . . . . . . . . Special 45 | . . . . . . 1 . . . . . 1 . 5 . . 3 . 2 20 . . . . 9 . 2 . 2 Kinetic 218 | . 26 . . . . 20 . . . . . . . . . . . . . 21 39 . . 1 . . . . 111 Thermal 407 | . 72 12 144 30 62 42 31 . . . . . . . . . . . . . . . . . . . . . 14 Explosive 15 | . . . . . . 7 . . 6 . 2 . . . . . . . . . . . . . . . . . . Electromagnetic 16 | . . . . 6 . 10 . . . . . . . . . . . . . . . . . . . . . . . Robot Hit Streak 28 | . 10 6 12 19 11 17 9 . 1 . . 2 . 7 . . 10 . 1 15 6 . . . 9 . 1 . 28 Robot Miss Streak 10 | . 7 3 4 5 10 5 2 . 1 . . . . . . . . . 1 3 2 . . . . . 1 . 2 Penetration Max 1 | . . . . . . . . . . . . . . . . . . . . 1 . . . . . . . . 1 Secondary Targets 13 | . 3 . 3 . 3 1 . . . . . . . . . . . . . . . . . . . . . . 3 Max Gunslinging Chain 1 | . 1 . 1 . 1 1 . . . . . . . . . . . . . . . . . . . . . . 1 Shots Hit Robots 573 | . 80 10 78 30 58 62 23 2 7 . 3 2 . 6 . . 6 . 3 37 29 14 . 2 10 . 6 . 105 Core Hits 470 | . 68 11 47 33 86 105 3 . 13 . 5 1 . . . . 3 . 1 6 9 8 . 2 1 . 4 . 64 Critical Kills 14 | . . . . . . . 2 . . . . . . . . . . . . 3 5 . . . . . . . 4 Critical Parts Destroyed 21 | . . . . . . 1 . . . . . . . 1 . . . . . 4 6 . . . . . . . 9 Critical Strikes 50 | . 1 . 2 . . 1 2 . . . . . . 1 . . 1 . . 7 19 1 . . . . . . 15 Burn 3 | . 1 . 2 . . . . . . . . . . . . . . . . . . . . . . . . . . Meltdown 2 | . . . . . . . 2 . . . . . . . . . . . . . . . . . . . . . . Destroy 41 | . . . . . . 1 . . . . . . . . . . . . . 6 19 . . . . . . . 15 Smash 2 | . . . . . . . . . . . . . . 1 . . . . . 1 . . . . . . . . . Impale 2 | . . . . . . . . . . . . . . . . . 1 . . . . 1 . . . . . . . Melee Attacks 195 | . . . . . . . 7 2 25 1 15 7 . 35 1 . 3 1 15 9 11 15 1 8 12 10 7 10 . Impact 69 | . . . . . . . . . 23 1 15 7 . 12 . . . . 2 9 . . . . . . . . . Slashing 38 | . . . . . . . . . . . . . . . . . . . . . . . . . 11 10 7 10 . Piercing 77 | . . . . . . . . . . . . . . 23 1 . 3 1 13 . 11 15 1 8 1 . . . . Sneak Attacks 32 | . . . . . . . 7 2 3 . . . . . . . . . 1 2 3 10 . 1 . . 3 . . Combat Hostiles 3 | . . . . . . . . . 1 . . . . . . . . . 1 1 . . . . . . . . . Follow-up Attacks . | . . . . . . . . . . . . . . . . . . . . . . . . . . . . . . Damage Inflicted 19745 | . 961 111 1801 478 884 3419 384 . 932 . 363 88 . 54 . . 291 . 220 618 731 1136 . 108 69 . 386 . 6711 Guns 8039 | . 961 111 1622 370 884 814 . . . . . . . . . . . . . . . . . . . . . . 3277 Cannons 1969 | . . . . . . . 384 . . . . . . . . . . . . 203 471 . . . . . . . 911 Explosions 6421 | . . . 179 108 . 2605 . . 745 . 261 . . . . . . . . . . . . . . . . . 2523 Melee 3316 | . . . . . . . . . 187 . 102 88 . 54 . . 291 . 220 415 260 1136 . 108 69 . 386 . . Ramming . | . . . . . . . . . . . . . . . . . . . . . . . . . . . . . . Kinetic 4376 | . 250 . . . . 175 . . . . . . . . . . . . . 203 471 . . . . . . . 3277 Thermal 8396 | . 711 111 1700 370 884 802 384 . . . . . . . . . . . . . . . . . . . . . 3434 Explosive 2041 | . . . . . . 1035 . . 745 . 261 . . . . . . . . . . . . . . . . . . Electromagnetic 1616 | . . . 101 108 . 1407 . . . . . . . . . . . . . . . . . . . . . . . Impact 846 | . . . . . . . . . 187 . 102 88 . 54 . . . . . 415 . . . . . . . . . Slashing 455 | . . . . . . . . . . . . . . . . . . . . . . . . . 69 . 386 . . Piercing 2015 | . . . . . . . . . . . . . . . . . 291 . 220 . 260 1136 . 108 . . . . . Highest Corruption 6 | . 1 1 . . . . 3 . 5 5 6 . . 3 3 3 3 4 1 3 3 3 . . 2 2 . . 3 Average Corruption 2 | . 1 1 . . . . 2 . 5 5 5 . . 2 3 3 3 3 1 1 3 2 . . 1 2 . . 1 Corruption Purged 6 | . . . . . . . . . . . . . . . . . . . . . . 3 . . . . . . 3 Corruption Blocked . | . . . . . . . . . . . . . . . . . . . . . . . . . . . . . . Effects 81 | . 2 2 . . . . 8 . 2 1 6 . . 5 3 3 . 3 . 15 11 6 . . 1 3 . . 10 Message Errors 26 | . 1 2 . . . . 2 . 2 . 1 . . 1 1 2 . 3 . 3 3 2 . . . . . . 3 Matter Fused 24 | . . . . . . . 2 . . 1 3 . . 2 1 . . . . 2 4 3 . . . 3 . . 3 Heat Flow Errors 5 | . . . . . . . 1 . . . . . . . . 1 . . . 3 . . . . . . . . . Energy Discharges 5 | . . . . . . . 1 . . . . . . . . . . . . 1 2 . . . . . . . 1 Parts Rejected 5 | . . . . . . . . . . . 1 . . . . . . . . 2 1 . . . . . . . 1 Data Loss (minor) 10 | . 1 . . . . . . . . . . . . 2 1 . . . . 2 1 1 . . . . . . 2 Misfires 3 | . . . . . . . 2 . . . . . . . . . . . . 1 . . . . . . . . . Alerts 3 | . . . . . . . . . . . 1 . . . . . . . . 1 . . . . 1 . . . . Overload Shots . | . . . . . . . . . . . . . . . . . . . . . . . . . . . . . . Overflow Damage 922 | . . . . . . 82 26 . 66 . 10 . . 54 . . . . 54 156 . 269 . . . . 72 . 133 Projectiles 30 | . . . . . . . 26 . . . . . . . . . . . . 4 . . . . . . . . . Explosions 225 | . . . . . . 82 . . . . 10 . . . . . . . . . . . . . . . . . 133 Melee 667 | . . . . . . . . . 66 . . . . 54 . . . . 54 152 . 269 . . . . 72 . . Knockbacks 5 | . . . . . . . . . . . . . . . . . . . . 5 . . . . . . . . . Impact 1 | . . . . . . . . . . . . . . . . . . . . 1 . . . . . . . . . Kinetic 4 | . . . . . . . . . . . . . . . . . . . . 4 . . . . . . . . . Secondary . | . . . . . . . . . . . . . . . . . . . . . . . . . . . . . . Self-Inflicted Damage 104 | . . . . . . 104 . . . . . . . . . . . . . . . . . . . . . . . Shots 6 | . . . . . . 6 . . . . . . . . . . . . . . . . . . . . . . . Rammed . | . . . . . . . . . . . . . . . . . . . . . . . . . . . . . . Targets Rammed . | . . . . . . . . . . . . . . . . . . . . . . . . . . . . . . Kicked . | . . . . . . . . . . . . . . . . . . . . . . . . . . . . . . Crushed . | . . . . . . . . . . . . . . . . . . . . . . . . . . . . . . Highest Temperature 315 | . 315 117 18 9 145 272 202 . . 2 196 131 110 219 . 239 . . . 262 10 . . 11 49 42 . 304 77 Average Temperature 58 | . 91 57 6 4 45 115 36 . . 2 83 38 38 55 . 92 . . . 114 10 . . 8 9 17 . 76 53 Received Heat Transfer 2159 | . 285 . 213 45 171 711 18 . 45 . 81 . . 9 . . . 9 48 4 . . 12 268 30 . 36 9 165 Effects 4 | . 1 . . . . 2 . . . . . . . . . . . . . 1 . . . . . . . . . Energy Bleed 1 | . 1 . . . . . . . . . . . . . . . . . . . . . . . . . . . . Interference 3 | . . . . . . 2 . . . . . . . . . . . . . 1 . . . . . . . . . Siege Activations . | . . . . . . . . . . . . . . . . . . . . . . . . . . . . . . Martial Activations . | . . . . . . . . . . . . . . . . . . . . . . . . . . . . . . Shielding Activations . | . . . . . . . . . . . . . . . . . . . . . . . . . . . . . . Robots Disrupted . | . . . . . . . . . . . . . . . . . . . . . . . . . . . . . . Combat Hostiles . | . . . . . . . . . . . . . . . . . . . . . . . . . . . . . . Robots Corrupted 8 | . . . . 1 . 4 . . 1 . . . . 1 . . . . . 1 . . . . . . . . . Combat Hostiles 4 | . . . . 1 . 3 . . . . . . . . . . . . . . . . . . . . . . . Parts Fried 8 | . . . . 1 . 3 . . . . . . . 1 . . . . . 3 . . . . . . . . . Impact Corruptions 7 | . . . . . . . . . 2 . . . . 2 . . . . . 3 . . . . . . . . . Robots Melted 3 | . . . 1 . . . 2 . . . . . . . . . . . . . . . . . . . . . . Combat Hostiles 2 | . . . 1 . . . 1 . . . . . . . . . . . . . . . . . . . . . . Parts Melted 19 | . 3 . 9 . 2 . 1 . . . . . . . . . . . . . . . . . . . . . 4 Heat Transferred 11255 | . 1350 130 3343 450 1085 1105 544 . . . . . . . . . . . . . . . . . . . . . 3248 Parts Sabotaged . | . . . . . . . . . . . . . . . . . . . . . . . . . . . . . . Parts Stolen . | . . . . . . . . . . . . . . . . . . . . . . . . . . . . . . Parts Stripped . | . . . . . . . . . . . . . . . . . . . . . . . . . . . . . . Power Chain Reactions 3 | . . . 1 . . 2 . . . . . . . . . . . . . . . . . . . . . . . Alert | -11 -10 -10 -9 -9 -8 -8 -8 -8 -6 -6 -6 -5 -5 -5 -5 -5 -5 -4 -4 -4 -4 -4 -4 -3 -3 -3 -2 -2 -2 ------- Run | Yrd Mat Min Mat Min Mat Sto Rec Scr Fac Was Fac Fac Was Fac Upp Upp Zhi Pro Fac Ext Cet Arc Hub Res Arm Lab Res Qua Frg Maximum Alert Level 3 | . . . 1 . . 2 1 . . . . . . . . . . . . 3 3 2 . . . . . . 2 Low Security (%) 65 | 100 100 100 14 100 100 15 70 . 100 100 100 100 100 100 . . . . 100 24 . 24 100 100 100 . 100 100 81 Level 1 24 | . . . 85 . . 68 29 . . . . . . . . . . . . 44 . 58 . . . . . . 6 Level 2 6 | . . . . . . 16 . . . . . . . . . . . . . 8 52 16 . . . . . . 11 Level 3 3 | . . . . . . . . . . . . . . . . . . . . 22 47 . . . . . . . . Level 4 . | . . . . . . . . . . . . . . . . . . . . . . . . . . . . . . Level 5 . | . . . . . . . . . . . . . . . . . . . . . . . . . . . . . . High Security . | . . . . . . . . . . . . . . . . . . . . . . . . . . . . . . Max Security . | . . . . . . . . . . . . . . . . . . . . . . . . . . . . . . Peak Influence 1039 | . 92 70 399 129 185 610 264 . 130 46 185 96 80 178 . . . . 60 1039 753 424 113 114 168 . 37 39 538 Initial 578 | . . . . 129 . 9 230 . . 45 18 83 10 . . . . . 9 12 578 285 41 42 29 . . 20 8 Average 172 | . 36 9 290 43 86 321 117 . 31 35 72 67 30 92 . . . . 13 392 690 279 70 52 115 . 7 15 112 Influence Increases 9064 | . 448 75 862 219 328 1034 307 . 324 1 293 93 118 367 15 . 10 15 198 1593 461 269 91 227 427 . 100 153 1036 Destroy 0b10 Robot/C 3600 | . 340 60 540 180 240 540 100 . 120 . 60 . . . . . . . 20 600 200 80 . . 140 . . . 380 Destroy 0b10 Robot/NC 460 | . 10 5 65 5 15 65 5 . 5 . 5 5 . 5 . . 10 . . 35 10 45 5 5 15 . 20 . 125 Destroy Leader 620 | . 64 10 126 30 44 146 . . 22 . 10 2 . 2 . . . . 10 86 10 . . . 16 . 2 . 40 Allied During Kill 1141 | . . . . 4 10 27 6 . . . . . . . . . . . . 631 220 125 5 . 113 . . . . Successful Hack 490 | . 34 . 64 . 4 17 12 . 32 . 50 31 . 101 . . . . . 15 . . 12 34 30 . . 36 18 Select Force Hacks 230 | . . . . . . . 180 . . . . . . . . . . . . . . . 50 . . . . . . Disable Machine 525 | . . . 30 . . 75 . . 45 . . . . 60 . . . . 15 15 15 15 15 . 75 . 15 75 75 Anti-Garrison Action 200 | . . . . . . . . . . . . . . . . . . . . . . . . . . . . . 200 Destroy Structure 478 | . . . 7 . . 74 4 . 10 1 33 10 118 34 . . . . 18 46 6 4 4 8 38 . 3 12 48 Partial Spotted 285 | . . . . . . . . . 15 . 30 45 . 15 . . . . 15 90 . . . 30 . . . . 45 Lose Combat Pursuer 1035 | . . . 30 . 15 90 . . 75 . 105 . . 150 15 . . 15 120 75 . . . 150 . . 60 30 105 Influence Decreases 8582 | . 448 75 530 551 306 464 899 . 194 105 148 234 148 203 162 17 10 . 186 587 781 864 127 253 481 2 63 175 569 Entered New Map 1919 | . . . . 203 . 13 362 . . 85 8 88 20 . 62 4 . . 6 15 455 428 77 40 27 2 . 17 7 Time Decay 4988 | . 418 75 480 328 266 331 457 . 124 20 100 50 60 188 100 13 10 . 71 400 246 416 10 178 180 . 43 100 324 Lost Part 718 | . 30 . 50 20 . 100 20 . . . 30 . . 15 . . . . 57 . 20 . 20 35 52 . 20 11 238 Lost Ally 622 | . . . . . 40 20 60 . 50 . 10 . 68 . . . . . 10 172 60 20 20 . 92 . . . . Purge Threat 335 | . . . . . . . . . 20 . . 96 . . . . . . 42 . . . . . 130 . . 47 . Squads Dispatched 69 | . 2 . . . 6 5 . . 3 . 9 2 . 10 . . . . 5 4 1 . 2 8 2 . 1 2 7 Investigation 33 | . . . . . . . . . 2 . 6 2 . 9 . . . . 3 1 1 . 2 2 . . 1 . 4 Extermination 7 | . . . . . . . . . 1 . 1 . . 1 . . . . 1 . . . . 1 1 . . 1 . Reinforcement 24 | . 2 . . . 4 2 . . . . 2 . . . . . . . 1 3 . . . 5 1 . . 1 3 Assault 3 | . . . . . . 3 . . . . . . . . . . . . . . . . . . . . . . . Garrison 2 | . . . . . 2 . . . . . . . . . . . . . . . . . . . . . . . . Intercept . | . . . . . . . . . . . . . . . . . . . . . . . . . . . . . . Searches Triggered . | . . . . . . . . . . . . . . . . . . . . . . . . . . . . . . Construction Impeded 3 | . . . . . . 1 . . . . . . . . . . . . . 2 . . . . . . . . . Haulers Reinforced 1 | . . . . . . . . . . . . . . . . . . . . . . . . 1 . . . . . Active Scanning Responses . | . . . . . . . . . . . . . . . . . . . . . . . . . . . . . . Cargo Convoy Interrupts . | . . . . . . . . . . . . . . . . . . . . . . . . . . . . . . Stealth | -11 -10 -10 -9 -9 -8 -8 -8 -8 -6 -6 -6 -5 -5 -5 -5 -5 -5 -4 -4 -4 -4 -4 -4 -3 -3 -3 -2 -2 -2 --------- Run | Yrd Mat Min Mat Min Mat Sto Rec Scr Fac Was Fac Fac Was Fac Upp Upp Zhi Pro Fac Ext Cet Arc Hub Res Arm Lab Res Qua Frg Distress Signals 30 | . 1 . 5 . 5 4 . . . . 2 . . . . . . . . 1 . . . 3 1 . 1 . 7 Communications Jammed . | . . . . . . . . . . . . . . . . . . . . . . . . . . . . . . Distress Signals . | . . . . . . . . . . . . . . . . . . . . . . . . . . . . . . Times Spotted 486 | . 24 3 40 13 20 48 7 . 14 . 24 1 6 19 1 . . 3 14 33 8 5 16 26 26 . 10 9 116 Peak Tracking Total 25 | . 5 3 10 3 5 10 3 . 6 . 8 1 3 5 1 . . 3 8 4 4 1 17 11 13 . 7 8 25 Tactical Retreats 40 | . . . 2 1 1 1 . . 3 . 4 . . 5 1 . . 1 4 4 . . . 4 . . 2 2 5 Traps | -11 -10 -10 -9 -9 -8 -8 -8 -8 -6 -6 -6 -5 -5 -5 -5 -5 -5 -4 -4 -4 -4 -4 -4 -3 -3 -3 -2 -2 -2 ------- Run | Yrd Mat Min Mat Min Mat Sto Rec Scr Fac Was Fac Fac Was Fac Upp Upp Zhi Pro Fac Ext Cet Arc Hub Res Arm Lab Res Qua Frg Traps Triggered 12 | . 1 . . . . . . . 2 . 2 1 . . . . . . 1 2 . . . . 1 . 1 . 1 Indirectly . | . . . . . . . . . . . . . . . . . . . . . . . . . . . . . . Trap Hack Attempts . | . . . . . . . . . . . . . . . . . . . . . . . . . . . . . . Triggered . | . . . . . . . . . . . . . . . . . . . . . . . . . . . . . . Disarmed . | . . . . . . . . . . . . . . . . . . . . . . . . . . . . . . Reprogrammed . | . . . . . . . . . . . . . . . . . . . . . . . . . . . . . . Reused . | . . . . . . . . . . . . . . . . . . . . . . . . . . . . . . Traps Extracted . | . . . . . . . . . . . . . . . . . . . . . . . . . . . . . . Installed . | . . . . . . . . . . . . . . . . . . . . . . . . . . . . . . Triggered . | . . . . . . . . . . . . . . . . . . . . . . . . . . . . . . Machines | -11 -10 -10 -9 -9 -8 -8 -8 -8 -6 -6 -6 -5 -5 -5 -5 -5 -5 -4 -4 -4 -4 -4 -4 -3 -3 -3 -2 -2 -2 ---------- Run | Yrd Mat Min Mat Min Mat Sto Rec Scr Fac Was Fac Fac Was Fac Upp Upp Zhi Pro Fac Ext Cet Arc Hub Res Arm Lab Res Qua Frg Machines Disabled 41 | . . . 2 . . 5 . . 3 . . . . 4 1 . . . 1 2 1 1 1 . 5 4 1 5 5 Max in Single Turn 2 | . . . 1 . . 2 . . 1 . . . . 1 1 . . . 1 1 1 . . . 1 1 1 1 1 Garrison Access 5 | . . . . . 1 1 . . . . . . . 1 . . . . . . . . . . . . . 1 1 Network Hub 1 | . . . . . . . . . . . . . . . . . . . . . . . 1 . . . . . . Machines Repaired . | . . . . . . . . . . . . . . . . . . . . . . . . . . . . . . Machines Dismantled 1 | . . . . . . 1 . . . . . . . . . . . . . . . . . . . . . . . Machines Sabotaged 1 | . . . . . . . . . . . . . . . . . . . . . . . 1 . . . . . . Overloaded Fab Kills . | . . . . . . . . . . . . . . . . . . . . . . . . . . . . . . Hacking | -11 -10 -10 -9 -9 -8 -8 -8 -8 -6 -6 -6 -5 -5 -5 -5 -5 -5 -4 -4 -4 -4 -4 -4 -3 -3 -3 -2 -2 -2 --------- Run | Yrd Mat Min Mat Min Mat Sto Rec Scr Fac Was Fac Fac Was Fac Upp Upp Zhi Pro Fac Ext Cet Arc Hub Res Arm Lab Res Qua Frg Machines Accessed 148 | . 8 . 14 . 3 5 12 2 9 . 14 6 . 24 1 2 4 . 5 13 1 . 2 6 5 . . 3 9 Terminals 82 | . 6 . 11 . 1 4 6 . 5 . 7 3 . 12 1 1 . . 1 12 1 . 2 2 4 . . 1 2 Fabricators 10 | . . . . . . . . . 1 . 2 1 . 2 . . . . 1 . . . . . 1 . . . 2 Repair Stations 2 | . . . . . . . . . . . . . . 1 . . . . . . . . . 1 . . . . . Recycling Units 34 | . 2 . 2 . 1 . 6 . 2 . 4 2 . 6 . . . . 3 1 . . . 2 . . . . 3 Scanalyzers 8 | . . . 1 . . . . . 1 . 1 . . 2 . . . . . . . . . 1 . . . 1 1 Garrison Access 5 | . . . . . 1 1 . . . . . . . 1 . . . . . . . . . . . . . 1 1 Total Hacks 363 | . 22 . 34 . 7 9 37 5 19 . 27 14 . 53 1 2 17 . 15 24 2 . 6 17 21 . . 10 21 Successful 186 | . 12 . 18 . 2 7 20 5 11 . 12 8 . 18 1 2 17 . 9 15 . . 2 9 4 . . 4 10 Failed 174 | . 10 . 16 . 5 2 17 . 7 . 15 6 . 35 . . . . 6 9 2 . 4 7 17 . . 6 10 Catastrophic 31 | . 1 . 3 . . . 1 . 5 . 2 1 . 8 . . . . 1 1 1 . . . 4 . . . 3 Database Lockouts 3 | . . . . . . . . . 1 . . . . . . . . . . . . . . 1 . . . . 1 Manual 161 | . 19 . 22 . 2 8 25 . 11 . 13 2 . 21 . . . . 3 5 1 . 6 5 7 . . . 11 Terminals 204 | . 19 . 28 . 2 8 16 . 10 . 15 8 . 32 1 1 . . 5 22 2 . 6 3 18 . . 4 4 Fabricators 20 | . . . . . . . . . 1 . 5 2 . 3 . . . . 2 . . . . . 3 . . . 4 Repair Stations 8 | . . . . . . . . . . . . . . 2 . . . . . . . . . 6 . . . . . Recycling Units 74 | . 3 . 4 . 4 . 21 . 3 . 5 4 . 9 . . . . 8 2 . . . 5 . . . . 6 Scanalyzers 23 | . . . 2 . . . . . 5 . 2 . . 4 . . . . . . . . . 3 . . . 3 4 Garrison Access 11 | . . . . . 1 1 . . . . . . . 3 . . . . . . . . . . . . . 3 3 Terminal Hacks 82 | . 4 . 8 . . 1 1 5 3 . 4 3 . 7 1 2 17 . 3 14 . . 1 1 3 . . 3 1 Record 11 | . . . . . . . . 4 . . . . . . 1 1 5 . . . . . . . . . . . . Part Schematic 5 | . . . . . . . . . . . . . . . . . 4 . . 1 . . . . . . . . . Robot Analysis 5 | . . . 1 . . . . . . . . . . . . . 4 . . . . . . . . . . . . Prototype ID Bank 6 | . . . 1 . . . . . . . . . . . . . 4 . . 1 . . . . . . . . . Open Door 11 | . . . . . . 1 . . . . . . . . . 1 . . . 9 . . . . . . . . . Level Access Points 1 | . . . . . . . . . . . . . . 1 . . . . . . . . . . . . . . . Branch Access Points 3 | . . . . . . . . . . . 1 1 . 1 . . . . . . . . . . . . . . . Machine Index 1 | . . . . . . . . . . . . . . . . . . . . . . . . . . . . 1 . Terminal Index 5 | . 1 . 1 . . . 1 . . . . . . 1 . . . . . . . . . . 1 . . . . Recycling Unit Index 5 | . . . . . . . . . 1 . 1 . . 1 . . . . . 1 . . . 1 . . . . . Unreport Threat 7 | . . . . . . . . . 2 . . 1 . . . . . . 1 . . . . . 1 . . 2 . Locate Traps 1 | . . . . . . . . . . . . . . . . . . . . . . . . . . . . . 1 Recall Investigation 2 | . . . . . . . . . . . . . . 2 . . . . . . . . . . . . . . . Recall Reinforcements 1 | . . . . . . . . . . . . . . . . . . . 1 . . . . . . . . . . Hauler Manifests 2 | . . . . . . . . . . . 1 . . . . . . . . 1 . . . . . . . . . Registered Components 6 | . . . 1 . . . . . . . 1 1 . . . . . . 1 . . . 1 . 1 . . . . Zone Layout 9 | . 3 . 4 . . . . . . . . . . 1 . . . . . 1 . . . . . . . . . Proto ID Catalog 1 | . . . . . . . . 1 . . . . . . . . . . . . . . . . . . . . . Fabricator Hacks 12 | . . . . . . . . . 1 . 2 2 . 2 . . . . 2 . . . . . 1 . . . 2 Network Status 4 | . . . . . . . . . . . 1 1 . 2 . . . . . . . . . . . . . . . Load Schematic 2 | . . . . . . . . . . . . . . . . . . . 1 . . . . . . . . . 1 Build 6 | . . . . . . . . . 1 . 1 1 . . . . . . 1 . . . . . 1 . . . 1 Repair Station Hacks 5 | . . . . . . . . . . . . . . 1 . . . . . . . . . 4 . . . . . Scan Component 3 | . . . . . . . . . . . . . . 1 . . . . . . . . . 2 . . . . . Repair 2 | . . . . . . . . . . . . . . . . . . . . . . . . 2 . . . . . Recycling Unit Hacks 13 | . 1 . 2 . . . 7 . . . . 1 . . . . . . 1 . . . . 1 . . . . . Retrieve Components 13 | . 1 . 2 . . . 7 . . . . 1 . . . . . . 1 . . . . 1 . . . . . Scanalyzer 11 | . . . 2 . . . . . 3 . 1 . . 1 . . . . . . . . . 1 . . . . 3 Insert Component 1 | . . . . . . . . . 1 . . . . . . . . . . . . . . . . . . . . Retrieve Study 10 | . . . 2 . . . . . 2 . 1 . . 1 . . . . . . . . . 1 . . . . 3 Garrison Access Hacks 4 | . . . . . 1 1 . . . . . . . 1 . . . . . . . . . . . . . 1 . Seal Access 4 | . . . . . 1 1 . . . . . . . 1 . . . . . . . . . . . . . 1 . Unauthorized Hacks 59 | . 7 . 6 . 1 5 12 . 4 . 5 2 . 6 . . . . 3 1 . . 1 2 . . . . 4 Terminals 29 | . 7 . 6 . 1 5 6 . 2 . 1 . . . . . . . . . . . 1 . . . . . . Assimilate 2 | . . . . . . . . . 1 . 1 . . . . . . . . . . . . . . . . . . Botnet 6 | . 2 . . . . 2 1 . 1 . . . . . . . . . . . . . . . . . . . . Skim 20 | . 5 . 6 . 1 3 5 . . . . . . . . . . . . . . . . . . . . . . Sabotage 1 | . . . . . . . . . . . . . . . . . . . . . . . 1 . . . . . . Fabricators . | . . . . . . . . . . . . . . . . . . . . . . . . . . . . . . Repair Stations . | . . . . . . . . . . . . . . . . . . . . . . . . . . . . . . Recycling Units 29 | . . . . . . . 6 . 2 . 4 2 . 6 . . . . 3 1 . . . 2 . . . . 3 Tunnel 6 | . . . . . . . 6 . . . . . . . . . . . . . . . . . . . . . . Fedlink 23 | . . . . . . . . . 2 . 4 2 . 6 . . . . 3 1 . . . 2 . . . . 3 Scanalyzers . | . . . . . . . . . . . . . . . . . . . . . . . . . . . . . . Garrison Access 1 | . . . . . . . . . . . . . . . . . . . . . . . . . . . . . 1 Jam 1 | . . . . . . . . . . . . . . . . . . . . . . . . . . . . . 1 Data Cores Recovered 1 | . . . . . . . . . . . . . . . . . . . . . . . 1 . . . . . . Used 1 | . . . . . . . . . . . . . . . . . . . . . . . 1 . . . . . . Hacking Detections 89 | . 5 . 8 . 2 3 10 . 7 . 10 5 . 17 1 . . . 2 5 1 . 1 3 4 . . 1 4 Full Trace Events 6 | . . . . . . . . . . . 1 . . 3 . . . . . . 1 . 1 . . . . . . Feedback Events 1 | . . . . . . . . . . . . . . 1 . . . . . . . . . . . . . . . Corruption 1 | . . . . . . . . . . . . . . 1 . . . . . . . . . . . . . . . Feedback Blocked . | . . . . . . . . . . . . . . . . . . . . . . . . . . . . . . Robot Schematics Acquired . | . . . . . . . . . . . . . . . . . . . . . . . . . . . . . . Robots Built 7 | . . . . . . . . . 2 . . . . . . . . . 2 . . . . . 3 . . . . Authchips . | . . . . . . . . . . . . . . . . . . . . . . . . . . . . . . Time 504 | . . . . . . . . . 116 . . 152 . . . . . . 93 . . . . . 93 . . . 50 Total Robot Build Rating 41 | . . . . . . . . . 6 . . . . . . . . . 14 . . . . . 21 . . . . Part Schematics Acquired 5 | . . . . . . . . . . . . . . . . . 4 . . 1 . . . . . . . . . Parts Built 1 | . . . . . . . . . . . 1 . . . . . . . . . . . . . . . . . . Authchips . | . . . . . . . . . . . . . . . . . . . . . . . . . . . . . . Time 128 | . . . . . . . . . . . 128 . . . . . . . . . . . . . . . . . . Total Part Build Rating 8 | . . . . . . . . . . . 8 . . . . . . . . . . . . . . . . . . Part Studies Acquired 10 | . . . 2 . . . . . 2 . 1 . . 1 . . . . . . . . . 1 . . . . 3 Parts Repaired 2 | . . . . . . . . . . . . . . . . . . . . . . . . 2 . . . . . Time 69 | . . . . . . . . . . . . . . . . . . . . . . . . 69 . . . . . Parts Recycled . | . . . . . . . . . . . . . . . . . . . . . . . . . . . . . . Recycled Matter . | . . . . . . . . . . . . . . . . . . . . . . . . . . . . . . Retrieved Matter . | . . . . . . . . . . . . . . . . . . . . . . . . . . . . . . Retrieved Components 47 | . 10 . 20 . . . 11 . . . . 3 . . . . . . . . . . . 3 . . . . . Parts Scanalyzed . | . . . . . . . . . . . . . . . . . . . . . . . . . . . . . . Part Schematics Acquired . | . . . . . . . . . . . . . . . . . . . . . . . . . . . . . . Parts Damaged . | . . . . . . . . . . . . . . . . . . . . . . . . . . . . . . Bothacking | -11 -10 -10 -9 -9 -8 -8 -8 -8 -6 -6 -6 -5 -5 -5 -5 -5 -5 -4 -4 -4 -4 -4 -4 -3 -3 -3 -2 -2 -2 ------------ Run | Yrd Mat Min Mat Min Mat Sto Rec Scr Fac Was Fac Fac Was Fac Upp Upp Zhi Pro Fac Ext Cet Arc Hub Res Arm Lab Res Qua Frg Used RIF Installer . | . . . . . . . . . . . . . . . . . . . . . . . . . . . . . . Robots Hacked 11 | . . . . . . . . 2 1 . . 1 . 1 . . 3 . 1 1 . . . . . . 1 . . Non-combat 4 | . . . . . . . . . 1 . . 1 . . . . . . 1 1 . . . . . . . . . Combat 5 | . . . . . . . . 2 . . . . . . . . 3 . . . . . . . . . . . . Robot Hacks Applied 11 | . . . . . . . . 2 2 . . 1 . . . . 3 . 1 2 . . . . . . . . . parse_system 6 | . . . . . . . . 2 1 . . . . . . . 3 . . . . . . . . . . . . no_distress 1 | . . . . . . . . . . . . . . . . . . . . 1 . . . . . . . . . find_chute 3 | . . . . . . . . . 1 . . 1 . . . . . . 1 . . . . . . . . . . find_recycling 1 | . . . . . . . . . . . . . . . . . . . . 1 . . . . . . . . . Manual 2 | . . . . . . . . . . . . . . 1 . . . . . . . . . . . . 1 . . Relay Couplers Released . | . . . . . . . . . . . . . . . . . . . . . . . . . . . . . . Fabnet Peak Effective % . | . . . . . . . . . . . . . . . . . . . . . . . . . . . . . . Robots Rewired 25 | . . . . . . . 4 . . . . . . . . . . . . 13 . . . . 8 . . . . Allies Hacked 1 | . . . . . . . . . . . . . . . . . . . . . . . . . 1 . . . . Hacks Repelled 2 | . . . . . . . . . . . . . . . . . . . . . . . . . . . . . 2 Allies | -11 -10 -10 -9 -9 -8 -8 -8 -8 -6 -6 -6 -5 -5 -5 -5 -5 -5 -4 -4 -4 -4 -4 -4 -3 -3 -3 -2 -2 -2 -------- Run | Yrd Mat Min Mat Min Mat Sto Rec Scr Fac Was Fac Fac Was Fac Upp Upp Zhi Pro Fac Ext Cet Arc Hub Res Arm Lab Res Qua Frg Total Allies 77 | . . . . 4 . 2 4 . 3 . 1 . 20 . . . . . 2 25 5 . . . 11 . . . . Largest Group 20 | . . . . 3 3 2 4 2 3 . 1 . 20 . . . . . 2 14 16 14 13 . 11 . . . . Highest-Rated Group 1061 | . . . . 40 40 62 56 31 57 . 26 . 733 . . . . . 62 729 1061 866 832 . 583 . . . . Highest-Rated Ally 159 | . . . . 31 16 31 31 16 26 . 26 . 50 . . . . . 31 159 152 96 96 . 68 . . . . Total Orders 6 | . . . . . . . . 4 . . . . . . . . . . . . . . . . 2 . . . . STAY 3 | . . . . . . . . 2 . . . . . . . . . . . . . . . . 1 . . . . FOLLOW 3 | . . . . . . . . 2 . . . . . . . . . . . . . . . . 1 . . . . Ally Attacks 529 | . . . . 7 17 19 16 . 7 . . . 96 . . . . . . 219 59 31 17 . 41 . . . . Total Damage 16733 | . . . . 43 154 254 248 . 77 . . . 5426 . . . . . . 5480 1564 995 577 . 1915 . . . . Kills 75 | . . . . 2 . 4 2 . . . . . 13 . . . . . . 32 7 4 2 . 9 . . . . Allies Corrupted 4 | . . . . . . . . . . . . . . . . . . . . 2 . . . . 2 . . . . Allies Melted 2 | . . . . . . . . . . . . . . . . . . . . . . . . . . . . . 2 Intel | -11 -10 -10 -9 -9 -8 -8 -8 -8 -6 -6 -6 -5 -5 -5 -5 -5 -5 -4 -4 -4 -4 -4 -4 -3 -3 -3 -2 -2 -2 ------- Run | Yrd Mat Min Mat Min Mat Sto Rec Scr Fac Was Fac Fac Was Fac Upp Upp Zhi Pro Fac Ext Cet Arc Hub Res Arm Lab Res Qua Frg Active Infowar (turns) 7288 | . . . 2 . . . 1 8 239 59 258 138 150 415 212 283 57 132 203 998 524 1004 36 415 395 205 149 229 1176 Optics 6905 | . . . . . . . . . . . 184 138 150 415 212 283 57 132 203 998 524 1004 36 415 395 205 149 229 1176 Sensors 379 | . . . 2 . . . 1 . . . . 1 . . 48 21 . . . . . . . . . . 23 229 54 Terrain 3996 | . . . . . . . . . 239 59 258 138 150 415 164 262 57 132 184 297 376 969 36 260 . . . . . Cloaking 626 | . . . . . . . . . . . . . . . . . 41 112 . . . . . . 88 42 25 229 89 Jamming 8 | . . . . . . . . 8 . . . . . . . . . . . . . . . . . . . . . Robot Analysis Total 5 | . . . 1 . . . . . . . . . . . . . 4 . . . . . . . . . . . . Derelict Logs Recovered 11 | . . 2 . 2 . . . . . . . . . . 2 2 . 3 . . . . . . . . . . . Drone Launches . | . . . . . . . . . . . . . . . . . . . . . . . . . . . . . . Drone Recoveries . | . . . . . . . . . . . . . . . . . . . . . . . . . . . . . . Exploration | -11 -10 -10 -9 -9 -8 -8 -8 -8 -6 -6 -6 -5 -5 -5 -5 -5 -5 -4 -4 -4 -4 -4 -4 -3 -3 -3 -2 -2 -2 ------------- Run | Yrd Mat Min Mat Min Mat Sto Rec Scr Fac Was Fac Fac Was Fac Upp Upp Zhi Pro Fac Ext Cet Arc Hub Res Arm Lab Res Qua Frg Turns Passed 16741 | 71 1189 539 1498 1010 677 845 1152 2393 318 59 258 138 150 415 212 283 57 132 203 998 524 1004 36 415 395 205 149 229 1187 Spaces Moved 17190 | 44 591 466 778 566 441 501 712 2016 696 258 801 474 279 1198 582 521 158 392 521 883 332 351 68 633 680 153 237 372 1486 Core 14 | 11 . . . . . . . . . . . . . . . . . . . . . . . . . . . . 3 Treads 2858 | 33 420 . 593 566 35 . 267 944 . . . . . . . . . . . . . . . . . . . . . Legs 1474 | . . . . . 406 501 445 . . . . . . . . . . . . . . . . . . . . . 122 Wheels 822 | . 171 466 185 . . . . . . . . . . . . . . . . . . . . . . . . . . Hover 3108 | . . . . . . . . 629 . . . . . . . . . . . . . 294 52 362 680 153 237 372 329 Flight 8914 | . . . . . . . . 443 696 258 801 474 279 1198 582 521 158 392 521 883 332 57 16 271 . . . . 1032 Fastest Speed 7 | 50 105 105 105 160 120 120 120 26 20 20 14 20 20 17 20 20 20 20 20 20 20 27 26 26 40 40 40 41 7 Average Speed 64 | 132 144 105 146 160 123 122 140 109 24 20 19 20 20 20 20 20 20 20 23 27 35 50 39 42 43 42 47 44 40 Slowest Speed 240 | 160 160 105 160 160 160 190 240 189 96 20 20 20 20 23 20 20 20 20 103 103 102 116 108 108 48 53 126 126 170 Overloaded Moves 167 | . . . . . . . . . . . 15 . . 20 . . . . . . . . . . . . . . 132 Propulsion Burnouts . | . . . . . . . . . . . . . . . . . . . . . . . . . . . . . . Robots Hopped 25 | . . . . . . . . . . 1 4 . . 5 . . . . 1 . . . 2 8 . . . . 4 Potential Cave-ins 14 | . . . . . . . . . . . . . . . . . . . . . . . . . . . . 6 8 Cave-ins Triggered . | . . . . . . . . . . . . . . . . . . . . . . . . . . . . . . Teleports 4 | . . . . . . . . . . . . . . . . . . . . . . . . . 1 . . . 3 Exploration Rate (%) 60 | 4 96 98 73 97 39 82 98 86 25 96 29 15 95 43 68 71 61 71 22 86 73 98 13 20 44 94 12 48 47 Regions Visited 29 Branch Regions 17 Pre-discovered Areas 17 | . 1 2 1 1 . . 7 . 1 . . . . . . . 3 1 . . . . . . . . . . . Known Exits Taken 11 | . . . 1 1 1 1 . 1 . . 1 . . 1 1 . . 1 . . . . 1 1 . . . . . Unknown Exits Taken 14 | 1 1 1 . . . . 1 . . . . . . . . 1 1 . 1 1 1 1 . . 1 1 1 1 . Scrap Searched 16 | . . 1 . 1 . . . 6 . . . . . . 1 4 . 3 . . . . . . . . . . . Spaces Dug 76 | . . . . . . . . . 8 1 12 5 . 17 . . . . 9 . . . 1 4 6 . 1 4 8 Terrain Destroyed 199 | . . . 2 . . 87 5 . 10 1 33 5 . 17 . . . . 9 . . . 1 4 6 . 1 4 14 Melee 68 | . . . . . . . . . 8 1 12 5 . 17 . . . . 9 . . . 1 4 6 . 1 4 . Projectile 6 | . . . . . . . 5 . . . . . . . . . . . . . . . . . . . . . 1 AOE 125 | . . . 2 . . 87 . . 2 . 21 . . . . . . . . . . . . . . . . . 13 Terrain Rammed . | . . . . . . . . . . . . . . . . . . . . . . . . . . . . . . Walls Destroyed . | . . . . . . . . . . . . . . . . . . . . . . . . . . . . . . Machines Disabled . | . . . . . . . . . . . . . . . . . . . . . . . . . . . . . . Actions | -11 -10 -10 -9 -9 -8 -8 -8 -8 -6 -6 -6 -5 -5 -5 -5 -5 -5 -4 -4 -4 -4 -4 -4 -3 -3 -3 -2 -2 -2 --------- Run | Yrd Mat Min Mat Min Mat Sto Rec Scr Fac Was Fac Fac Was Fac Upp Upp Zhi Pro Fac Ext Cet Arc Hub Res Arm Lab Res Qua Frg Total 21809 | 57 829 503 997 633 533 641 841 2221 794 261 863 505 374 1292 673 699 173 442 571 1593 680 1146 74 763 760 277 260 423 1931 Wait 3018 | . 157 29 65 38 1 22 70 109 18 . 19 9 87 19 85 173 . 50 13 604 263 753 . 50 6 103 2 16 257 Move 17120 | 43 590 465 777 565 440 500 711 2015 696 255 792 474 278 1187 581 520 157 391 518 882 331 350 65 620 679 152 236 371 1479 Hop 18 | . . . . . . . . . . 1 4 . . 5 . . . . 1 . . . . 4 . . . . 3 Pick Up 265 | 8 18 3 26 . 27 15 5 29 14 . 8 2 4 10 1 2 1 . 8 . 8 4 . 27 7 6 3 9 20 Fast Attach 85 | . . . 9 . 2 3 6 1 2 2 1 1 . 5 . . 3 . 1 8 4 8 1 7 12 1 2 1 5 Attach 187 | 6 4 . 9 2 4 6 3 14 9 . 8 5 1 6 . . 1 . 7 7 6 3 2 19 9 2 6 5 43 Detach 61 | . . . . . . . 1 1 4 . 2 4 1 2 . . . . 2 7 5 . 2 9 1 1 1 2 16 Swap 118 | . 4 . 10 6 8 16 1 15 9 . 7 . . 8 4 2 2 . 2 2 2 4 . 3 7 1 . 3 2 Drop 239 | . 7 . 29 2 20 11 8 35 11 2 5 2 3 12 1 2 3 . 3 4 11 9 3 15 18 1 1 6 15 Fire 457 | . 49 6 72 20 31 64 29 . 6 . 2 1 . 5 . . 3 . 2 40 39 . . 1 9 . 2 . 76 Melee 192 | . . . . . . . 7 2 25 1 15 7 . 33 1 . 3 1 14 9 11 15 1 8 12 10 7 10 . Ram . | . . . . . . . . . . . . . . . . . . . . . . . . . . . . . . Kick . | . . . . . . . . . . . . . . . . . . . . . . . . . . . . . . Crush . | . . . . . . . . . . . . . . . . . . . . . . . . . . . . . . Escape Stasis 45 | . . . . . . . . . . . . . . . . . . . . 30 . . . . . . . . 15 Rewire . | . . . . . . . . . . . . . . . . . . . . . . . . . . . . . . Trap . | . . . . . . . . . . . . . . . . . . . . . . . . . . . . . . Miscellaneous 4 | . . . . . . 4 . . . . . . . . . . . . . . . . . . . . . . . Route ------- -11/Scrapyard -10/Materials (discovered 6 exits: *Mat x3 / [*Min x2] / *Sub) -10/Mines (discovered 4 exits: *Mat x2 / [*Exi] / Sub) -9/Materials (discovered 5 exits: *Mat x3 / *Min x2) -9/Mines (discovered 2 exits: *Mat x2) -8/Materials (discovered 4 exits: *Fac x3 / *Sto) -8/Storage (discovered 2 exits: *Fac / *Rec) -8/Recycling (discovered 2 exits: *Fac / *Scr) -8/Scraptown (discovered 2 exits: *Fac x2) -6/Factory (discovered 2 exits: *Fac x2) -6/Waste -6/Factory (discovered 3 exits: *Fac / *Low x2) -5/Factory (discovered 3 exits: *Fac / Upp x2) -5/Waste -5/Factory (discovered 6 exits: *Fac x4 / *Upp x2) -5/Upper Caves -5/Upper Caves (discovered 2 exits: *Fac / *Zhi) -5/Zhirov -4/Proximity Caves -4/Factory (discovered 4 exits: *Res x3 / *Ext) -4/Extension (discovered 2 exits: *Res / *Cet) -4/Cetus (discovered 2 exits: *Res / [*Arc]) -4/Archives (discovered 3 exits: *Res / *Hub x2) -4/Hub_04(d) -3/Research (discovered 2 exits: [*Res] / *Arm) -3/Armory -3/Lab -2/Research (discovered 2 exits: *Qua x2) -2/Quarantine (discovered 3 exits: [*Acc] / [*Sec] / *Frg) -2/Protoforge History --------- Turn | Location | Event 10 | -11/Scrapyard | Discovered new exit (range 16) 72 | -11/Scrapyard | Entered Materials 164 | -10/Materials | Discovered new exit (range 16) 238 | -10/Materials | Discovered new exit (range 6) 301 | -10/Materials | Build established: Mutant 463 | -10/Materials | Discovered new exit (range 16) 573 | -10/Materials | Discovered new exit (range 14) 670 | -10/Materials | Discovered new exit (range 16) 900 | -10/Materials | Discovered new exit (range 8) 1009 | -10/Materials | Learned 2 Mines zone layouts 1077 | -10/Materials | Learned location of Subcaves (-10) 1098 | -10/Materials | Learned Storage trap positions 1127 | -10/Materials | Learned Storage trap positions 1261 | -10/Materials | Entered Mines 1262 | -10/Mines | Identified exit to Subcaves 1318 | -10/Mines | Discovered new exit (range 4) 1455 | -10/Mines | Learned 2 Materials zone layouts 1489 | -10/Mines | Found a Scrap Suit stashed away for nefarious purposes 1509 | -10/Mines | Found a damaged Exp. Sensor Array with a note attached 1513 | -10/Mines | Found Prototype Device 1550 | -10/Mines | Discovered new exit (range 7) 1699 | -10/Mines | A weapon hastily lodged in a ceiling crevice suddenly fell to the ground 1708 | -10/Mines | Learned location of Zion (-7) 1746 | -10/Mines | Learned location of Storage (-8) 1760 | -10/Mines | Deemed a non-threat by the Exiles lab entrance 1760 | -10/Mines | Discovered new exit (range 5) 1800 | -10/Mines | Entered Materials 1800 | -9/Materials | Evolved 2 slots: Utility x2 1801 | -9/Materials | Identified exit to Mines 1802 | -9/Materials | Identified exit to Materials 2038 | -9/Materials | Lost 3 parts (1p2u) 2042 | -9/Materials | Destroyed 8 combat bots 2205 | -9/Materials | Discovered exit to Materials (range 16) 2412 | -9/Materials | Identified Exp. Sensor Array 2579 | -9/Materials | Learned 2 Materials zone layouts 2632 | -9/Materials | Learned location of 1 exit from Storage 2642 | -9/Materials | Learned 2 Storage zone layouts 2643 | -9/Materials | Learned location of 1 exit from Recycling 2646 | -9/Materials | Learned location of 3 exits from Materials 2647 | -9/Materials | Learned location of Mines (-9) 2654 | -9/Materials | Learned location of 2 exits from Materials 3298 | -9/Materials | Entered Mines 3339 | -9/Mines | Discovered exit to Materials (range 4) 3492 | -9/Mines | Destroyed YI-UF0 3563 | -9/Mines | Learned Materials security intel 3586 | -9/Mines | Core integrity fell below 50% 3691 | -9/Mines | Received a Mining Laser from a helpful Derelict 3725 | -9/Mines | Discovered exit to Materials (range 12) 4062 | -9/Mines | Assisted by bots powering up and referring to "LRC-V3" 4308 | -9/Mines | Entered Materials 4308 | -8/Materials | Accompanied by 3 allies 4308 | -8/Materials | Evolved 2 slots: Propulsion x2 4309 | -8/Materials | Identified exit to Storage 4309 | -8/Materials | Identified exit to Factory 4420 | -8/Materials | Garrison activated, responded to threat 4549 | -8/Materials | Met 7R-MNS 4985 | -8/Materials | Entered Storage 4986 | -8/Storage | Identified exit to Recycling 4988 | -8/Storage | Loaded intel: 9 trap records 5138 | -8/Storage | Lost 4 parts (1p1n1u1w) 5143 | -8/Storage | Destroyed 9 combat bots 5288 | -8/Storage | Used back door to open Recycling access 5611 | -8/Storage | Met a pair of Derelict thieves 5785 | -8/Storage | First assault squad dispatched 5830 | -8/Storage | Entered Recycling 5830 | -8/Recycling | Accompanied by 1 ally 5831 | -8/Recycling | Identified exit to Factory 6165 | -8/Recycling | Learned Storage trap positions 6212 | -8/Recycling | Learned location of 1 exit from Storage 6219 | -8/Recycling | Learned 2 Lower Caves zone layouts 6220 | -8/Recycling | Learned location of 1 exit from Storage 6246 | -8/Recycling | Learned Factory stockpile data 6351 | -8/Recycling | Core integrity fell below 50% 6802 | -8/Recycling | Build established: Scavenger-Mutant 6929 | -8/Recycling | Scanned before Scraplab entrance 6951 | -8/Recycling | Entered Scraplab 6964 | -8/Recycling | Discovered new exit (range 2) 6982 | -8/Recycling | Entered Scraptown 6982 | -8/Scraptown | Accompanied by 2 allies 6982 | -8/Scraptown | System corruption cleaned by C-Scrubber 7045 | -8/Scraptown | Heard Great Nut preacher, LISTEN AND RECITE! 7084 | -8/Scraptown | Visited UFD Registry 7084 | -8/Scraptown | Registered with UFD as "Pyrosourcer" 7107 | -8/Scraptown | Visited CR-KLE's Repair Center 7116 | -8/Scraptown | Visited CPS Storage 7145 | -8/Scraptown | Visited TADAMA 7167 | -8/Scraptown | Visited Fellowship of the Rings 7612 | -8/Scraptown | Build established: Mutant 7899 | -8/Scraptown | Visited Abandonware Association 7917 | -8/Scraptown | Learned abandonware demo "TRNCOAT.EXE" 7917 | -8/Scraptown | Learned abandonware demo "POISON.EXE" 7972 | -8/Scraptown | Visited Chapter 10 8009 | -8/Scraptown | Visited DA-N13 Charitable Foundation 8015 | -8/Scraptown | Found DCF Scrap (31 items) 8054 | -8/Scraptown | Visited Supply Room 8069 | -8/Scraptown | Visited Modified Component R&D 8121 | -8/Scraptown | Visited Observation Area 8147 | -8/Scraptown | Visited Junk Repository 8173 | -8/Scraptown | Visited Science Guys 8762 | -8/Scraptown | CR-KLE repaired 8 parts 9109 | -8/Scraptown | Build established: Derelict-Mutant 9326 | -8/Scraptown | Met Optimus 9326 | -8/Scraptown | Accepted into 0bPrime 9375 | -8/Scraptown | Entered Factory 9375 | -6/Factory | Accompanied by 2 allies 9375 | -6/Factory | Evolved 4 slots: Power x1, Propulsion x2, Utility x1 9376 | -6/Factory | Identified exit to Factory 9544 | -6/Factory | Central database locked down 9559 | -6/Factory | Discovered exit to Factory (range 12) 9625 | -6/Factory | Loaded intel: 8 recycling unit locations 9641 | -6/Factory | Fabricated H-55 Commando? 9652 | -6/Factory | Learned location of Protoforge (-2) 9693 | -6/Factory | Manually triggered Chute Trap 9693 | -6/Factory | Sucked down chute 9693 | -6/Factory | Entered Waste 9693 | -6/Waste | The area was eerily silent 9710 | -6/Waste | Found Prototype Processor 9710 | -6/Waste | Identified Exp. Terrain Scan Processor 9749 | -6/Waste | Discovered new exit (range 15) 9752 | -6/Waste | Entered Factory 9810 | -6/Factory | Identified exit to Lower Caves 9865 | -6/Factory | Lost 3 parts (2n1u) 9914 | -6/Factory | Fabricated Fusion Bomb Launcher? 9976 | -6/Factory | Loaded intel: 8 recycling unit locations 9993 | -6/Factory | Discovered exit to Factory (range 16) 10010 | -6/Factory | Entered another Factory area 10010 | -5/Factory | Evolved 2 slots: Propulsion x1, Utility x1 10094 | -5/Factory | Identified exit to Upper Caves 10097 | -5/Factory | Loaded intel: 8 recycling unit locations 10116 | -5/Factory | Discovered new exit (range 21) 10148 | -5/Factory | Manually triggered Chute Trap 10148 | -5/Factory | Sucked down chute 10148 | -5/Factory | Entered Waste 10149 | -5/Waste | Met a frightened Derelict 10151 | -5/Waste | Spotted C-40 Crusher 10157 | -5/Waste | Warlord forces began an assault 10165 | -5/Waste | Allies destroyed C-40 Crusher 10180 | -5/Waste | Spotted C-40 Crusher 10181 | -5/Waste | Spotted C-40 Crusher 10194 | -5/Waste | Lost 6 allies 10209 | -5/Waste | Allies destroyed C-40 Crusher 10217 | -5/Waste | Allies destroyed C-40 Crusher 10223 | -5/Waste | Found Prototype Device 10236 | -5/Waste | Spotted C-40 Crusher 10236 | -5/Waste | Spotted C-40 Crusher 10242 | -5/Waste | Spotted C-40 Crusher 10247 | -5/Waste | Lost 4 allies 10267 | -5/Waste | Allies destroyed C-40 Crusher 10278 | -5/Waste | Allies destroyed C-40 Crusher 10283 | -5/Waste | Discovered new exit (range 11) 10286 | -5/Waste | Found Broken Fusion Bomb Launcher 10298 | -5/Waste | Entered Factory 10305 | -5/Factory | Lost 3 allies 10329 | -5/Factory | Loaded intel: 8 recycling unit locations 10369 | -5/Factory | Identified Thermal Barrier 10398 | -5/Factory | Spotted B-75 Beast 10468 | -5/Factory | Identified exit to Factory 10713 | -5/Factory | Entered Upper Caves 10752 | -5/Upper Caves | Found Alien Artifact 10805 | -5/Upper Caves | Identified exit to Upper Caves 10816 | -5/Upper Caves | Encountered a Warlord checkpoint 10840 | -5/Upper Caves | Build established: Scout 10925 | -5/Upper Caves | Entered another Upper Caves area 10986 | -5/Upper Caves | Discovered exit to Factory (range 11) 11146 | -5/Upper Caves | Discovered new exit (range 17) 11147 | -5/Upper Caves | Encountered a Warlord checkpoint 11206 | -5/Upper Caves | Learned location of 1 exit from Factory 11208 | -5/Upper Caves | Entered Zhirov 11208 | -5/Zhirov | Discovered new exit (range 3) 11212 | -5/Zhirov | Met Zhirov 11219 | -5/Zhirov | Zhirov requested help retrieving the SGEMP Prototype 11222 | -5/Zhirov | Found Alien Artifact 11222 | -5/Zhirov | Identified Integrated Dissipator 11222 | -5/Zhirov | Installed Integrated Dissipator, increased core heat dissipation (+20) 11227 | -5/Zhirov | Found Alien Artifact 11265 | -5/Zhirov | Entered Proximity Caves 11320 | -4/Proximity Caves | Attracted the attention of an 0b10 checkpoint 11350 | -4/Proximity Caves | Learned 4 Research zone layouts 11353 | -4/Proximity Caves | Spotted B-86 Titan 11397 | -4/Proximity Caves | Entered Factory 11397 | -4/Factory | Evolved 2 slots: Utility x2 11398 | -4/Factory | Identified exit to Research 11405 | -4/Factory | Loaded intel: 8 recycling unit locations 11449 | -4/Factory | Spotted B-86 Titan 11494 | -4/Factory | Lost 4 parts (3p1n) 11522 | -4/Factory | Discovered exit to Research (range 14) 11535 | -4/Factory | Fabricated W-44 Eye? 11581 | -4/Factory | Discovered exit to Research (range 13) 11593 | -4/Factory | Discovered new exit (range 21) 11600 | -4/Factory | Entered Extension 11610 | -4/Extension | Rescued a captive Derelict 11613 | -4/Extension | Rescued a captive Derelict 11622 | -4/Extension | Rescued a captive Derelict 11623 | -4/Extension | Rescued a captive Derelict 11665 | -4/Extension | Rescued A7 11711 | -4/Extension | Lost 3 allies 11715 | -4/Extension | Rescued a captive Derelict 11855 | -4/Extension | Rescued a captive Derelict 11869 | -4/Extension | Build established: Hacker-Sprinter 11909 | -4/Extension | Rescued a captive Derelict 12172 | -4/Extension | Spotted B-86 Titan 12221 | -4/Extension | Allies destroyed B-86 Titan 12223 | -4/Extension | Spotted B-86 Titan 12241 | -4/Extension | Allies destroyed B-86 Titan 12264 | -4/Extension | Lost 3 allies 12321 | -4/Extension | Rescued a captive Derelict 12322 | -4/Extension | Rescued a captive Derelict 12323 | -4/Extension | Rescued a captive Derelict 12438 | -4/Extension | Loaded intel: 1 recycling unit location 12440 | -4/Extension | Rescued a captive Derelict 12522 | -4/Extension | Discovered exit to Research (range 11) 12522 | -4/Extension | Discovered new exit (range 7) 12598 | -4/Extension | Entered Cetus 12598 | -4/Cetus | Accompanied by 13 allies (A7) 12603 | -4/Cetus | Acquired a Cetus Manufacturing Module code from A7 12616 | -4/Cetus | Spotted Cetus Guard 12616 | -4/Cetus | Spotted Cetus Guard 12616 | -4/Cetus | Spotted Cetus Guard 12616 | -4/Cetus | Spotted Cetus Guard 12616 | -4/Cetus | Destroyed Cetus Guard 12620 | -4/Cetus | Destroyed Cetus Guard 12640 | -4/Cetus | Allies destroyed Cetus Guard 12643 | -4/Cetus | Allies destroyed Cetus Guard 12645 | -4/Cetus | Build established: Commander-Scout 12661 | -4/Cetus | Started Cetus Manufacturing Module 12686 | -4/Cetus | Manufactured an Enhanced Grunt 12697 | -4/Cetus | Discovered new exit (range 23) 12711 | -4/Cetus | Manufactured an Enhanced Grunt 12736 | -4/Cetus | Manufactured an Enhanced Grunt 12761 | -4/Cetus | Manufactured an Enhanced Grunt 12786 | -4/Cetus | Manufactured an Enhanced Grunt 12887 | -4/Cetus | Escorted A7 to Cetus Mainframe 12910 | -4/Cetus | Murdered A7 12914 | -4/Cetus | Extracted ID and sensor layout for unrecognized location from A7's data core 12960 | -4/Cetus | Spotted Cetus Guard 12961 | -4/Cetus | Spotted Cetus Guard 12965 | -4/Cetus | Spotted Cetus Guard 12982 | -4/Cetus | Allies destroyed Cetus Guard 12983 | -4/Cetus | Allies destroyed Cetus Guard 12983 | -4/Cetus | Spotted Cetus Guard 12989 | -4/Cetus | Allies destroyed Cetus Guard 13000 | -4/Cetus | Discovered exit to Research (range 22) 13022 | -4/Cetus | Allies destroyed Cetus Guard 13027 | -4/Cetus | Met Revision 17 13122 | -4/Cetus | Entered Archives 13122 | -4/Archives | Accompanied by 14 allies 13213 | -4/Archives | Discovered exit to Research (range 20) 13230 | -4/Archives | Discovered new exit (range 22) 13278 | -4/Archives | Discovered new exit (range 16) 14126 | -4/Archives | Entered Hub_04(d) 14126 | -4/Hub_04(d) | Accompanied by 13 allies 14136 | -4/Hub_04(d) | Network Hub disabled 14139 | -4/Hub_04(d) | Discovered exit to Research (range 17) 14140 | -4/Hub_04(d) | Spotted Lightning 14140 | -4/Hub_04(d) | Spotted Lightning 14140 | -4/Hub_04(d) | Spotted Lightning 14140 | -4/Hub_04(d) | Spotted Lightning 14141 | -4/Hub_04(d) | Spotted Lightning 14162 | -4/Hub_04(d) | Entered Research 14162 | -3/Research | Evolved 2 slots: Propulsion x1, Utility x1 14163 | -3/Research | Identified exit to Armory 14170 | -3/Research | Central database locked down 14287 | -3/Research | Spotted B-86 Titan 14316 | -3/Research | Loaded intel: 5 recycling unit locations 14362 | -3/Research | Revision forces began assault on 0b10 14383 | -3/Research | Discovered new exit (range 13) 14496 | -3/Research | Repaired Broken Tiamat Missile Launcher 14506 | -3/Research | Lost 7 allies 14515 | -3/Research | Repaired Lrg. Storage Unit 14577 | -3/Research | Entered Armory 14637 | -3/Armory | Found Prototype Device 14637 | -3/Armory | Identified Exp. Thermal Shield 14662 | -3/Armory | Found Gamma Bomb Array 14847 | -3/Armory | Build established: Scavenger-Mutant 14894 | -3/Armory | Fabricated G-67 Veteran? 14966 | -3/Armory | Identified Transdimensional Reconstructor 14966 | -3/Armory | Warped through subspace to slip node 14966 | -3/Armory | Discovered new exit (range 1) 14972 | -3/Armory | Entered Lab 14972 | -3/Lab | Discovered new exit (range 9) 14977 | -3/Lab | Hidden lab's door opened automatically 14977 | -3/Lab | Sensor layout match revealed 14978 | -3/Lab | Gained access to the hidden lab's interior 14983 | -3/Lab | Lost 9 allies 14996 | -3/Lab | Lost 7 parts (4p3n) 15073 | -3/Lab | Found Prototype Protection 15074 | -3/Lab | Found Quantum Router 15077 | -3/Lab | Found Prototype Energy Gun 15129 | -3/Lab | Found Prototype Energy Cannon 15147 | -3/Lab | Found Alien Artifact 15147 | -3/Lab | Identified Integrated Mediator 15147 | -3/Lab | Installed Integrated Mediator, increased core attachment efficiency 15152 | -3/Lab | Identified Exp. Powered Armor 15154 | -3/Lab | Found Alien Artifact 15163 | -3/Lab | Found Transdimensional Reconstructor 15177 | -3/Lab | Entered Research 15177 | -2/Research | Evolved 2 slots: Power x1, Weapon x1 15215 | -2/Research | Discovered new exit (range 18) 15235 | -2/Research | Infected Heavy with POISON.EXE 15270 | -2/Research | Build established: Hacker-Mutant 15279 | -2/Research | Lost 5 parts (1p2n1u1w) 15311 | -2/Research | Discovered new exit (range 9) 15324 | -2/Research | Identified Hyp. EM Gauss Rifle 15326 | -2/Research | Entered Quarantine 15336 | -2/Quarantine | Found Transdimensional Reconstructor 15340 | -2/Quarantine | Found Alien Artifact 15341 | -2/Quarantine | Identified Potential Cannon 15349 | -2/Quarantine | Found Alien Artifact 15356 | -2/Quarantine | Found Alien Artifact 15401 | -2/Quarantine | Cryocooling Duct disabled 15411 | -2/Quarantine | Discovered new exit (range 8) 15416 | -2/Quarantine | Ambient heat levels rising (+20) 15416 | -2/Quarantine | Non-combat units ordered to evacuate 15427 | -2/Quarantine | Found Alien Artifact 15440 | -2/Quarantine | Found Alien Reactor 15459 | -2/Quarantine | Identified Matter Drive 15492 | -2/Quarantine | Found Alien Artifact 15494 | -2/Quarantine | Identified Subatomic Replicator 15494 | -2/Quarantine | Used Subatomic Replicator to create Alien Artifact 15515 | -2/Quarantine | Spotted Fortress 15553 | -2/Quarantine | Discovered new exit (range 6) 15553 | -2/Quarantine | Discovered new exit (range 5) 15555 | -2/Quarantine | Entered Protoforge 15562 | -2/Protoforge | Central database locked down 15577 | -2/Protoforge | Superfortress began startup sequence 15605 | -2/Protoforge | Spotted Hotshot 15605 | -2/Protoforge | Spotted Hotshot 15633 | -2/Protoforge | Spotted EXE-6 15633 | -2/Protoforge | Spotted EXE-6 15636 | -2/Protoforge | Spotted AP7-3 15636 | -2/Protoforge | Spotted AP7-3 15638 | -2/Protoforge | Spotted SKR-2 15638 | -2/Protoforge | Spotted SKR-2 15638 | -2/Protoforge | Spotted SKR-2 15645 | -2/Protoforge | Spotted Overlord 15647 | -2/Protoforge | Identified Hpw. Transdimensional Reconstructor (x2) 15647 | -2/Protoforge | Warped through subspace 15673 | -2/Protoforge | Spotted EXE-6 15673 | -2/Protoforge | Spotted EXE-6 15675 | -2/Protoforge | Lost 7 parts (1p3n3u) 15701 | -2/Protoforge | Core integrity fell below 50% 15710 | -2/Protoforge | UFD initiated attack on Protoforge (Readiness: Maximal) 15710 | -2/Protoforge | Loaded intel: 3 recycling unit locations 15746 | -2/Protoforge | Lost 5 parts (1p2n1u1w) 15757 | -2/Protoforge | Optimus greeted in Protoforge 15759 | -2/Protoforge | Lost 3 allies 15764 | -2/Protoforge | Found Prototype Processor 15765 | -2/Protoforge | Identified Exp. Core Analyzer 15769 | -2/Protoforge | Found Prototype Processor 15770 | -2/Protoforge | Identified Exp. Armor Integrity Analyzer 15775 | -2/Protoforge | Found Prototype Ballistic Gun 15776 | -2/Protoforge | Identified Cep. XC Strikerail 15792 | -2/Protoforge | Identified Dimensional Node Initializer (x2) 15792 | -2/Protoforge | Initialized slip node 15828 | -2/Protoforge | Found Cep. XC Strikerail 16087 | -2/Protoforge | Spotted Striker 16090 | -2/Protoforge | Spotted Striker 16092 | -2/Protoforge | Spotted Striker 16121 | -2/Protoforge | Spotted SKR-2 16121 | -2/Protoforge | P-80 Master assimilated allied 02F08-K 16126 | -2/Protoforge | Spotted 02F08-K 16129 | -2/Protoforge | Destroyed 02F08-K 16156 | -2/Protoforge | Destroyed 8 combat bots 16170 | -2/Protoforge | Lost 16 allies 16184 | -2/Protoforge | Spotted Striker 16232 | -2/Protoforge | Spotted Striker 16234 | -2/Protoforge | Spotted Striker 16241 | -2/Protoforge | Spotted Executioner 16242 | -2/Protoforge | Spotted Executioner 16258 | -2/Protoforge | Destroyed 7 combat bots 16263 | -2/Protoforge | Spotted Striker 16266 | -2/Protoforge | Spotted Striker 16272 | -2/Protoforge | Forge Plexus network access discovered 16273 | -2/Protoforge | Destroyed Striker 16291 | -2/Protoforge | Spotted Decapitator 16292 | -2/Protoforge | Spotted Decapitator 16292 | -2/Protoforge | Spotted Decapitator 16292 | -2/Protoforge | Spotted Hotshot 16292 | -2/Protoforge | Spotted Decapitator 16292 | -2/Protoforge | Spotted Hotshot 16292 | -2/Protoforge | Spotted Hotshot 16292 | -2/Protoforge | Spotted Decapitator 16299 | -2/Protoforge | Destroyed Decapitator 16327 | -2/Protoforge | Spotted Hotshot 16334 | -2/Protoforge | Spotted Hotshot 16355 | -2/Protoforge | Spotted Executioner 16364 | -2/Protoforge | Spotted Striker 16368 | -2/Protoforge | Lost 20 allies 16372 | -2/Protoforge | Identified Terrabomb 16372 | -2/Protoforge | Used Terrabomb 16390 | -2/Protoforge | Spotted Executioner 16395 | -2/Protoforge | Spotted Executioner 16404 | -2/Protoforge | Spotted Executioner 16422 | -2/Protoforge | Lost 3 allies 16442 | -2/Protoforge | Identified Supercharged TR 16442 | -2/Protoforge | Warped through subspace to slip node 16447 | -2/Protoforge | Spotted Decapitator 16451 | -2/Protoforge | Spotted Immortal 16456 | -2/Protoforge | Spotted Immortal 16457 | -2/Protoforge | Spotted Immortal 16468 | -2/Protoforge | Spotted Decapitator 16495 | -2/Protoforge | Spotted Executioner 16502 | -2/Protoforge | Destroyed Executioner 16510 | -2/Protoforge | Spotted Executioner 16511 | -2/Protoforge | Spotted Striker 16516 | -2/Protoforge | Spotted Striker 16528 | -2/Protoforge | Spotted Executioner 16530 | -2/Protoforge | Triborg destroyed during the operation 16530 | -2/Protoforge | Optimus emerged from Triborg 16555 | -2/Protoforge | Spotted Striker 16558 | -2/Protoforge | Spotted Decapitator 16564 | -2/Protoforge | Optimus destroyed during the operation 16572 | -2/Protoforge | Spotted Executioner 16578 | -2/Protoforge | Spotted Striker 16593 | -2/Protoforge | Spotted Executioner 16594 | -2/Protoforge | Warped through subspace 16594 | -2/Protoforge | Spotted V203-h 16594 | -2/Protoforge | Spotted V508-d 16594 | -2/Protoforge | Spotted V959-l 16606 | -2/Protoforge | Lost 3 parts (2n1u) 16606 | -2/Protoforge | Found Cep. Weapon Articulator 16607 | -2/Protoforge | Lost 26 allies 16608 | -2/Protoforge | Found Crosscalibrator 16623 | -2/Protoforge | Found Cep. Variable Chargecaster 16628 | -2/Protoforge | Found Exp. System Purifier 16675 | -2/Protoforge | Spotted Hotshot 16675 | -2/Protoforge | Spotted Hotshot 16678 | -2/Protoforge | Spotted Executioner 16679 | -2/Protoforge | Spotted Executioner 16726 | -2/Protoforge | Spotted Striker 16726 | -2/Protoforge | Spotted Striker 16726 | -2/Protoforge | Spotted Striker 16726 | -2/Protoforge | Spotted Executioner 16726 | -2/Protoforge | Spotted Executioner 16726 | -2/Protoforge | Spotted Executioner 16727 | -2/Protoforge | Destroyed Executioner 16727 | -2/Protoforge | Destroyed Executioner 16728 | -2/Protoforge | Spotted Hotshot 16729 | -2/Protoforge | Spotted Striker 16731 | -2/Protoforge | Core integrity fell below 20% 16731 | -2/Protoforge | Spotted Executioner 16740 | -2/Protoforge | Identified Core Expander 16740 | -2/Protoforge | Installed Core Expander, added new Propulsion slot 16741 | -2/Protoforge | Initialized slip node 16742 | -2/Protoforge | Core destroyed Last Messages --------------- 16737_ Xenon Bombardment Thruster destroyed. 16738_ Slug penetrates G-73 Enforcer. 16738_ Exp. Heat Sink destroyed. 16739_ Penetrated by Railslug. 16739_ Exp. Surge Thruster destroyed. 16739_ Railslug penetrates FP Insight Station. 16739_ Penetrated by Railslug. 16739_ Crosscalibrator destroyed. 16740_ Penetrated by Slug. 16740_ N-04 Retriever inserts Mak. Salvage Targeting Computer into Forge Plexus. 16740_ Identified Core Expander. 16740_ Core Expander installed, core expanded with Propulsion slot. 16741_ Initializer activates and latches into the ground. 16741_ N-04 Retriever inserts Ovr. Huge Scrapsphere into Forge Plexus. 16742_ Slug penetrates Dimensional Slip Node. 16742_ Dimensional Slip Node implodes. Map ----- +----------------------------------------------------+ | %""""""""""""""""""""""""""""" % | | % % % """"""""""""""""""""""""""""" % % | | % % %% """"""""""""""""""""""""""""" % | | " """"""""""""""""""""""""""""" % | | % """"" " """"""""""""""""""""""""""""" % "" | | " """""""""""""""""""""""""""""%" %% " | | " """"""""""""""""""""""""""" %% " " | | %% " """""""""""""""""""""""""""%""" "" | | "%%%%! %%%%""""""""""""""""""""""""""" %" "%" | | %%%&%%&=%%% """"""""""""""""""""""""" " "" | | %%[ &% =%"""""""""""""""""""""""% " " | | %! % """"""""""""""""""""" % " " | | = %%%%%%"""""""""""""""""""%% " " | | % % """"""""""""""""" %% " " | | % """""""""""""""% %! " | | % % % %% %%""""""""" n %% | | % % %% b inn n"" & | | %%%%%%""" n p % | | % s " % % | | % & " """" " n p %& | | "%" """ ""KK g %[% | | = " """" " K & h &! | | "%! " " " ! %*=% | | " ! " " % "!% % %% | | %%" %" %""= & % | | " %%""% %" @""" % = % | | " % " " % % %&%! | | "" "" % % % !!=[ | | " "" % %% " """"" " %% | | "" """"" % | | " " " "" """""" | | # ####################################### ## # | | ####?????????????????????????????????#"" # | | ???????????????????????????????????###" "# | | ???????????????????????????????????#"" " | | ???????????????????????????????????#"" " | | ???????????????????????????????????#"" " | | ???????????????????????????????????#"Y Y | | ???????????????????????????????????#"" " | | ???????????????????????????????????#"" " | | ???????????????????????????????????#"" " | | ???????????????????????????????????###" # | | ?????????????????????????????????????#"" ""# | | ?????????????????????????????????????###"""Y" ### | | ???????????????????????????????????????#""""" "#?? | | ???????????????????????????????????????#########?? | | ?????????????????????????????????????????????????? | | ?????????????????????????????????????????????????? | | ?????????????????????????????????????????????????? | | ?????????????????????????????????????????????????? | +----------------------------------------------------+ Best States ------------- Heat Dissipation 95 Energy Generation 53 Energy Capacity 1185 Matter Stores 300 Matter Capacity 300 Sight Range 22 Robot Scan Range 20 Terrain Scan Range 24 Terrain Scan Density 210 Jamming Range 12 Cloak Strength 4 Additional Mass Support 12 Armor Coverage 625 Weapon Cycling 15 Phase Shifting 10 Evasion (%) 78 Targeting Accuracy 6 Launcher Accuracy 30 Core Analysis 8 Armor Integrity Analysis 50 Recoil Reduction 4 Salvage Targeting 5 Offensive Hacking 36 Defensive Hacking 25 Authchip Count 2 Item Schematics ----------------- Assault Drone Bay | -5/Zhirov | Free Exp. Heat Sink | -5/Zhirov | Free Exp. Optical Array | -5/Zhirov | Free Imp. Arc Thrower | -5/Zhirov | Free Cld. Nuclear Pulse Thruster | -4/Extension | Hacked Robot Schematics ------------------ None Fabricated ------------ H-55 Commando | x2 | -6/Factory | Preloaded Fusion Bomb Launcher | x1 | -6/Factory | Preloaded W-44 Eye | x2 | -4/Factory | Preloaded G-67 Veteran | x3 | -3/Armory | Preloaded Repaired ---------- Tiamat Missile Launcher | 20% | -3/Research | Broken Lrg. Storage Unit | 11% | -3/Research Studied --------- Lgt. Treads | -9/Materials | Hacked Spread Laser | -9/Materials | Hacked Cesium-ion Thruster | -6/Factory | Hacked VTOL Module | -6/Factory | Hacked Hvy. Rocket Launcher | -6/Factory | Hacked Nuclear Pulse Array | -5/Factory | Hacked Hyp. Mass Driver | -3/Research | Hacked Linear Gravjet | -2/Protoforge | Hacked Quantum Reactor | -2/Protoforge | Hacked Cmb. Gravmag System | -2/Protoforge | Hacked Alien Tech Used ----------------- Integrated Dissipator Transdimensional Reconstructor Integrated Mediator Matter Drive Subatomic Replicator High-powered Transdimensional Reconstructor Dimensional Node Initializer Terrabomb Supercharged TR Core Expander Achievements -------------- Betrayal Most Foul UFD MVP Challenges ------------ None Game ------ Seed ElectronFactoryWeb Manual? 0 Play Time 05:29:29 Cumulative 585.9 hours Start 2025.12.01 @ 05:23:43 End 2025.12.02 @ 00:09:38 Sessions 8 Manual Loads 0 Difficulty Rogue Special Mode None Game No. 756 Rogue 756 Adventurer 0 Explorer 0 Win Type - Total 21 Types 10/1/2/2/2/0/2/2/0/0 Lore% 94 Gallery% 90 Achievement% 76 Wizard Run 0 Options --------- Layout 2 ASCII 0 Keyboard 0 Movement Mouse Keybinds 0 Fullscreen 2 Font 24/Smallcaps Map View 50x49 Zoom Use 0% Tactical HUD 1 Map Filters NONE Filters NONE Steam 1 RUN: ffae69f3-a72e-43f2-880f-bb12b2403a75